{"text_format":"1","workbook":"xlsx","n_sheets":3,"sheets":["pacijent","kartoni","cenovnik-terapija"],"not_rendered":{"charts":0,"images":2,"macros":1,"external_links":0,"defined_names":12,"comments":2,"pivot_tables":0},"unopened":[],"bounds":{"document_bytes":16777216,"sheet_cells":100000,"rows_first":2000,"rows_last":500,"rows_between":2000,"halvings":0,"cell_chars":16384,"cell_head_chars":4096},"cells_cut":0,"cells_raw":0,"read":"whole","date_system":"1900"}

{"sheet":"pacijent","index":0,"n_rows":1000,"n_cols":12,"rows_kept":1000,"cut":false,"hidden":false,"merged":[]}
[null,null,null,null,null,null,null,null,null,null,{"$f":"TODAY()","v":"2021-04-24"}]
[null,null,null,null,null,null,null,null,null,null,{"$f":"NOW()","v":"2021-04-24T18:11:58.160"}]
[]
[]
[null,"red.br","*","Godina","Datum","Ime","Prezime","Datum rođenja","Kontakt telefon","e-mail","Adresa stanovanja","Grad"]
[null,{"$f":"IF(D6<>\"\",1,\"\")","v":1},{"$f":"IF(D6<>\"\",\"st\",\"\")","v":"st"},21,"2021-04-10","Saša","Petrović","1967-10-23",381064148494,"sale@gmail.com","Surčinski put ","Beograd"]
[null,{"$f":"IF(D7<>\"\",B6+1,\"\")","v":2},{"$f":"IF(D7<>\"\",\"st\",\"\")","v":"st"},21,"2021-04-12","rasa","jovanov","1969-04-26",3810641234567]
[null,3,{"$f":"IF(D8<>\"\",\"st\",\"\")","v":"st"},21,"2021-04-16","Miodrag","Podunavac","2020-01-01",38106412345678,null,"Dr Ivana Ribara","Beograd"]
[null,4,"st",21,null,null,null,null,3810641234567]
[null,5,{"$f":"IF(D10<>\"\",\"st\",\"\")","v":"st"},21]
[null,"",""]
[null,"",""]
[null,"",""]
[null,"",""]
[null,"",""]
[null,"",""]
[null,"",""]
[null,"",""]
[null,"",""]
[null,"",""]
[null,"",""]
[null,"",""]
[null,"",""]
[null,"",""]
[null,"",""]
[null,"",""]
[null,"",""]
[null,"",""]
[null,"",""]
[null,"",""]
[null,"",""]
[null,"",""]
[null,"",""]
[null,"",""]
[null,"",""]
[null,"",""]
[null,"",""]
[null,"",""]
[null,"",""]
[null,"",""]
[null,"",""]
[null,"",""]
[null,"",""]
[null,"",""]
[null,"",""]
[null,"",""]
[null,"",""]
[null,"",""]
[null,"",""]
[null,"",""]
[null,"",""]
[null,"",""]
[null,"",""]
[null,"",""]
[null,"",""]
[null,"",""]
[null,"",""]
[null,"",""]
[null,"",""]
[null,"",""]
[null,"",""]
[null,"",""]
[null,"",""]
[null,"",""]
[null,"",""]
[null,"",""]
[null,"",""]
[null,"",""]
[null,"",""]
[null,"",""]
[null,{"$f":"IF(D71<>\"\",B70+1,\"\")","v":""},""]
[null,"",""]
[null,"",""]
[null,"",{"$f":"IF(D74<>\"\",\"st\",\"\")","v":""}]
[null,"",""]
[null,"",""]
[null,"",""]
[null,"",""]
[null,"",""]
[null,"",""]
[null,"",""]
[null,"",""]
[null,"",""]
[null,"",""]
[null,"",""]
[null,"",""]
[null,"",""]
[null,"",""]
[null,"",""]
[null,"",""]
[null,"",""]
[null,"",""]
[null,"",""]
[null,"",""]
[null,"",""]
[null,"",""]
[null,"",""]
[null,"",""]
[null,"",""]
[null,"",""]
[null,"",""]
[null,"",""]
[null,"",""]
[null,"",""]
[null,"",""]
[null,"",""]
[null,"",""]
[null,"",""]
[null,"",""]
[null,"",""]
[null,"",""]
[null,"",""]
[null,"",""]
[null,"",""]
[null,"",""]
[null,"",""]
[null,"",""]
[null,"",""]
[null,"",""]
[null,"",""]
[null,"",""]
[null,"",""]
[null,"",""]
[null,"",""]
[null,"",""]
[null,"",""]
[null,"",""]
[null,"",""]
[null,"",""]
[null,"",""]
[null,"",""]
[null,"",""]
[null,"",""]
[null,"",""]
[null,{"$f":"IF(D135<>\"\",B134+1,\"\")","v":""},""]
[null,"",""]
[null,"",""]
[null,"",{"$f":"IF(D138<>\"\",\"st\",\"\")","v":""}]
[null,"",""]
[null,"",""]
[null,"",""]
[null,"",""]
[null,"",""]
[null,"",""]
[null,"",""]
[null,"",""]
[null,"",""]
[null,"",""]
[null,"",""]
[null,"",""]
[null,"",""]
[null,"",""]
[null,"",""]
[null,"",""]
[null,"",""]
[null,"",""]
[null,"",""]
[null,"",""]
[null,"",""]
[null,"",""]
[null,"",""]
[null,"",""]
[null,"",""]
[null,"",""]
[null,"",""]
[null,"",""]
[null,"",""]
[null,"",""]
[null,"",""]
[null,"",""]
[null,"",""]
[null,"",""]
[null,"",""]
[null,"",""]
[null,"",""]
[null,"",""]
[null,"",""]
[null,"",""]
[null,"",""]
[null,"",""]
[null,"",""]
[null,"",""]
[null,"",""]
[null,"",""]
[null,"",""]
[null,"",""]
[null,"",""]
[null,"",""]
[null,"",""]
[null,"",""]
[null,"",""]
[null,"",""]
[null,"",""]
[null,"",""]
[null,"",""]
[null,"",""]
[null,"",""]
[null,"",""]
[null,{"$f":"IF(D199<>\"\",B198+1,\"\")","v":""},""]
[null,"",""]
[null,"",""]
[null,"",{"$f":"IF(D202<>\"\",\"st\",\"\")","v":""}]
[null,"",""]
[null,"",""]
[null,"",""]
[null,"",""]
[null,"",""]
[null,"",""]
[null,"",""]
[null,"",""]
[null,"",""]
[null,"",""]
[null,"",""]
[null,"",""]
[null,"",""]
[null,"",""]
[null,"",""]
[null,"",""]
[null,"",""]
[null,"",""]
[null,"",""]
[null,"",""]
[null,"",""]
[null,"",""]
[null,"",""]
[null,"",""]
[null,"",""]
[null,"",""]
[null,"",""]
[null,"",""]
[null,"",""]
[null,"",""]
[null,"",""]
[null,"",""]
[null,"",""]
[null,"",""]
[null,"",""]
[null,"",""]
[null,"",""]
[null,"",""]
[null,"",""]
[null,"",""]
[null,"",""]
[null,"",""]
[null,"",""]
[null,"",""]
[null,"",""]
[null,"",""]
[null,"",""]
[null,"",""]
[null,"",""]
[null,"",""]
[null,"",""]
[null,"",""]
[null,"",""]
[null,"",""]
[null,"",""]
[null,"",""]
[null,"",""]
[null,"",""]
[null,"",""]
[null,"",""]
[null,{"$f":"IF(D263<>\"\",B262+1,\"\")","v":""},""]
[null,"",""]
[null,"",""]
[null,"",{"$f":"IF(D266<>\"\",\"st\",\"\")","v":""}]
[null,"",""]
[null,"",""]
[null,"",""]
[null,"",""]
[null,"",""]
[null,"",""]
[null,"",""]
[null,"",""]
[null,"",""]
[null,"",""]
[null,"",""]
[null,"",""]
[null,"",""]
[null,"",""]
[null,"",""]
[null,"",""]
[null,"",""]
[null,"",""]
[null,"",""]
[null,"",""]
[null,"",""]
[null,"",""]
[null,"",""]
[null,"",""]
[null,"",""]
[null,"",""]
[null,"",""]
[null,"",""]
[null,"",""]
[null,"",""]
[null,"",""]
[null,"",""]
[null,"",""]
[null,"",""]
[null,"",""]
[null,"",""]
[null,"",""]
[null,"",""]
[null,"",""]
[null,"",""]
[null,"",""]
[null,"",""]
[null,"",""]
[null,"",""]
[null,"",""]
[null,"",""]
[null,"",""]
[null,"",""]
[null,"",""]
[null,"",""]
[null,"",""]
[null,"",""]
[null,"",""]
[null,"",""]
[null,"",""]
[null,"",""]
[null,"",""]
[null,"",""]
[null,"",""]
[null,"",""]
[null,{"$f":"IF(D327<>\"\",B326+1,\"\")","v":""},""]
[null,"",""]
[null,"",""]
[null,"",{"$f":"IF(D330<>\"\",\"st\",\"\")","v":""}]
[null,"",""]
[null,"",""]
[null,"",""]
[null,"",""]
[null,"",""]
[null,"",""]
[null,"",""]
[null,"",""]
[null,"",""]
[null,"",""]
[null,"",""]
[null,"",""]
[null,"",""]
[null,"",""]
[null,"",""]
[null,"",""]
[null,"",""]
[null,"",""]
[null,"",""]
[null,"",""]
[null,"",""]
[null,"",""]
[null,"",""]
[null,"",""]
[null,"",""]
[null,"",""]
[null,"",""]
[null,"",""]
[null,"",""]
[null,"",""]
[null,"",""]
[null,"",""]
[null,"",""]
[null,"",""]
[null,"",""]
[null,"",""]
[null,"",""]
[null,"",""]
[null,"",""]
[null,"",""]
[null,"",""]
[null,"",""]
[null,"",""]
[null,"",""]
[null,"",""]
[null,"",""]
[null,"",""]
[null,"",""]
[null,"",""]
[null,"",""]
[null,"",""]
[null,"",""]
[null,"",""]
[null,"",""]
[null,"",""]
[null,"",""]
[null,"",""]
[null,"",""]
[null,"",""]
[null,"",""]
[null,{"$f":"IF(D391<>\"\",B390+1,\"\")","v":""},""]
[null,"",""]
[null,"",""]
[null,"",{"$f":"IF(D394<>\"\",\"st\",\"\")","v":""}]
[null,"",""]
[null,"",""]
[null,"",""]
[null,"",""]
[null,"",""]
[null,"",""]
[null,"",""]
[null,"",""]
[null,"",""]
[null,"",""]
[null,"",""]
[null,"",""]
[null,"",""]
[null,"",""]
[null,"",""]
[null,"",""]
[null,"",""]
[null,"",""]
[null,"",""]
[null,"",""]
[null,"",""]
[null,"",""]
[null,"",""]
[null,"",""]
[null,"",""]
[null,"",""]
[null,"",""]
[null,"",""]
[null,"",""]
[null,"",""]
[null,"",""]
[null,"",""]
[null,"",""]
[null,"",""]
[null,"",""]
[null,"",""]
[null,"",""]
[null,"",""]
[null,"",""]
[null,"",""]
[null,"",""]
[null,"",""]
[null,"",""]
[null,"",""]
[null,"",""]
[null,"",""]
[null,"",""]
[null,"",""]
[null,"",""]
[null,"",""]
[null,"",""]
[null,"",""]
[null,"",""]
[null,"",""]
[null,"",""]
[null,"",""]
[null,"",""]
[null,"",""]
[null,"",""]
[null,"",""]
[null,{"$f":"IF(D455<>\"\",B454+1,\"\")","v":""},""]
[null,"",""]
[null,"",""]
[null,"",{"$f":"IF(D458<>\"\",\"st\",\"\")","v":""}]
[null,"",""]
[null,"",""]
[null,"",""]
[null,"",""]
[null,"",""]
[null,"",""]
[null,"",""]
[null,"",""]
[null,"",""]
[null,"",""]
[null,"",""]
[null,"",""]
[null,"",""]
[null,"",""]
[null,"",""]
[null,"",""]
[null,"",""]
[null,"",""]
[null,"",""]
[null,"",""]
[null,"",""]
[null,"",""]
[null,"",""]
[null,"",""]
[null,"",""]
[null,"",""]
[null,"",""]
[null,"",""]
[null,"",""]
[null,"",""]
[null,"",""]
[null,"",""]
[null,"",""]
[null,"",""]
[null,"",""]
[null,"",""]
[null,"",""]
[null,"",""]
[null,"",""]
[null,"",""]
[null,"",""]
[null,"",""]
[null,"",""]
[null,"",""]
[null,"",""]
[null,"",""]
[null,"",""]
[null,"",""]
[null,"",""]
[null,"",""]
[null,"",""]
[null,"",""]
[null,"",""]
[null,"",""]
[null,"",""]
[null,"",""]
[null,"",""]
[null,"",""]
[null,"",""]
[null,"",""]
[null,{"$f":"IF(D519<>\"\",B518+1,\"\")","v":""},""]
[null,"",""]
[null,"",""]
[null,"",{"$f":"IF(D522<>\"\",\"st\",\"\")","v":""}]
[null,"",""]
[null,"",""]
[null,"",""]
[null,"",""]
[null,"",""]
[null,"",""]
[null,"",""]
[null,"",""]
[null,"",""]
[null,"",""]
[null,"",""]
[null,"",""]
[null,"",""]
[null,"",""]
[null,"",""]
[null,"",""]
[null,"",""]
[null,"",""]
[null,"",""]
[null,"",""]
[null,"",""]
[null,"",""]
[null,"",""]
[null,"",""]
[null,"",""]
[null,"",""]
[null,"",""]
[null,"",""]
[null,"",""]
[null,"",""]
[null,"",""]
[null,"",""]
[null,"",""]
[null,"",""]
[null,"",""]
[null,"",""]
[null,"",""]
[null,"",""]
[null,"",""]
[null,"",""]
[null,"",""]
[null,"",""]
[null,"",""]
[null,"",""]
[null,"",""]
[null,"",""]
[null,"",""]
[null,"",""]
[null,"",""]
[null,"",""]
[null,"",""]
[null,"",""]
[null,"",""]
[null,"",""]
[null,"",""]
[null,"",""]
[null,"",""]
[null,"",""]
[null,"",""]
[null,"",""]
[null,{"$f":"IF(D583<>\"\",B582+1,\"\")","v":""},""]
[null,"",""]
[null,"",""]
[null,"",{"$f":"IF(D586<>\"\",\"st\",\"\")","v":""}]
[null,"",""]
[null,"",""]
[null,"",""]
[null,"",""]
[null,"",""]
[null,"",""]
[null,"",""]
[null,"",""]
[null,"",""]
[null,"",""]
[null,"",""]
[null,"",""]
[null,"",""]
[null,"",""]
[null,"",""]
[null,"",""]
[null,"",""]
[null,"",""]
[null,"",""]
[null,"",""]
[null,"",""]
[null,"",""]
[null,"",""]
[null,"",""]
[null,"",""]
[null,"",""]
[null,"",""]
[null,"",""]
[null,"",""]
[null,"",""]
[null,"",""]
[null,"",""]
[null,"",""]
[null,"",""]
[null,"",""]
[null,"",""]
[null,"",""]
[null,"",""]
[null,"",""]
[null,"",""]
[null,"",""]
[null,"",""]
[null,"",""]
[null,"",""]
[null,"",""]
[null,"",""]
[null,"",""]
[null,"",""]
[null,"",""]
[null,"",""]
[null,"",""]
[null,"",""]
[null,"",""]
[null,"",""]
[null,"",""]
[null,"",""]
[null,"",""]
[null,"",""]
[null,"",""]
[null,"",""]
[null,{"$f":"IF(D647<>\"\",B646+1,\"\")","v":""},""]
[null,"",""]
[null,"",""]
[null,"",{"$f":"IF(D650<>\"\",\"st\",\"\")","v":""}]
[null,"",""]
[null,"",""]
[null,"",""]
[null,"",""]
[null,"",""]
[null,"",""]
[null,"",""]
[null,"",""]
[null,"",""]
[null,"",""]
[null,"",""]
[null,"",""]
[null,"",""]
[null,"",""]
[null,"",""]
[null,"",""]
[null,"",""]
[null,"",""]
[null,"",""]
[null,"",""]
[null,"",""]
[null,"",""]
[null,"",""]
[null,"",""]
[null,"",""]
[null,"",""]
[null,"",""]
[null,"",""]
[null,"",""]
[null,"",""]
[null,"",""]
[null,"",""]
[null,"",""]
[null,"",""]
[null,"",""]
[null,"",""]
[null,"",""]
[null,"",""]
[null,"",""]
[null,"",""]
[null,"",""]
[null,"",""]
[null,"",""]
[null,"",""]
[null,"",""]
[null,"",""]
[null,"",""]
[null,"",""]
[null,"",""]
[null,"",""]
[null,"",""]
[null,"",""]
[null,"",""]
[null,"",""]
[null,"",""]
[null,"",""]
[null,"",""]
[null,"",""]
[null,"",""]
[null,"",""]
[null,{"$f":"IF(D711<>\"\",B710+1,\"\")","v":""},""]
[null,"",""]
[null,"",""]
[null,"",{"$f":"IF(D714<>\"\",\"st\",\"\")","v":""}]
[null,"",""]
[null,"",""]
[null,"",""]
[null,"",""]
[null,"",""]
[null,"",""]
[null,"",""]
[null,"",""]
[null,"",""]
[null,"",""]
[null,"",""]
[null,"",""]
[null,"",""]
[null,"",""]
[null,"",""]
[null,"",""]
[null,"",""]
[null,"",""]
[null,"",""]
[null,"",""]
[null,"",""]
[null,"",""]
[null,"",""]
[null,"",""]
[null,"",""]
[null,"",""]
[null,"",""]
[null,"",""]
[null,"",""]
[null,"",""]
[null,"",""]
[null,"",""]
[null,"",""]
[null,"",""]
[null,"",""]
[null,"",""]
[null,"",""]
[null,"",""]
[null,"",""]
[null,"",""]
[null,"",""]
[null,"",""]
[null,"",""]
[null,"",""]
[null,"",""]
[null,"",""]
[null,"",""]
[null,"",""]
[null,"",""]
[null,"",""]
[null,"",""]
[null,"",""]
[null,"",""]
[null,"",""]
[null,"",""]
[null,"",""]
[null,"",""]
[null,"",""]
[null,"",""]
[null,"",""]
[null,{"$f":"IF(D775<>\"\",B774+1,\"\")","v":""},""]
[null,"",""]
[null,"",""]
[null,"",{"$f":"IF(D778<>\"\",\"st\",\"\")","v":""}]
[null,"",""]
[null,"",""]
[null,"",""]
[null,"",""]
[null,"",""]
[null,"",""]
[null,"",""]
[null,"",""]
[null,"",""]
[null,"",""]
[null,"",""]
[null,"",""]
[null,"",""]
[null,"",""]
[null,"",""]
[null,"",""]
[null,"",""]
[null,"",""]
[null,"",""]
[null,"",""]
[null,"",""]
[null,"",""]
[null,"",""]
[null,"",""]
[null,"",""]
[null,"",""]
[null,"",""]
[null,"",""]
[null,"",""]
[null,"",""]
[null,"",""]
[null,"",""]
[null,"",""]
[null,"",""]
[null,"",""]
[null,"",""]
[null,"",""]
[null,"",""]
[null,"",""]
[null,"",""]
[null,"",""]
[null,"",""]
[null,"",""]
[null,"",""]
[null,"",""]
[null,"",""]
[null,"",""]
[null,"",""]
[null,"",""]
[null,"",""]
[null,"",""]
[null,"",""]
[null,"",""]
[null,"",""]
[null,"",""]
[null,"",""]
[null,"",""]
[null,"",""]
[null,"",""]
[null,"",""]
[null,{"$f":"IF(D839<>\"\",B838+1,\"\")","v":""},""]
[null,"",""]
[null,"",""]
[null,"",{"$f":"IF(D842<>\"\",\"st\",\"\")","v":""}]
[null,"",""]
[null,"",""]
[null,"",""]
[null,"",""]
[null,"",""]
[null,"",""]
[null,"",""]
[null,"",""]
[null,"",""]
[null,"",""]
[null,"",""]
[null,"",""]
[null,"",""]
[null,"",""]
[null,"",""]
[null,"",""]
[null,"",""]
[null,"",""]
[null,"",""]
[null,"",""]
[null,"",""]
[null,"",""]
[null,"",""]
[null,"",""]
[null,"",""]
[null,"",""]
[null,"",""]
[null,"",""]
[null,"",""]
[null,"",""]
[null,"",""]
[null,"",""]
[null,"",""]
[null,"",""]
[null,"",""]
[null,"",""]
[null,"",""]
[null,"",""]
[null,"",""]
[null,"",""]
[null,"",""]
[null,"",""]
[null,"",""]
[null,"",""]
[null,"",""]
[null,"",""]
[null,"",""]
[null,"",""]
[null,"",""]
[null,"",""]
[null,"",""]
[null,"",""]
[null,"",""]
[null,"",""]
[null,"",""]
[null,"",""]
[null,"",""]
[null,"",""]
[null,"",""]
[null,"",""]
[null,{"$f":"IF(D903<>\"\",B902+1,\"\")","v":""},""]
[null,"",""]
[null,"",""]
[null,"",{"$f":"IF(D906<>\"\",\"st\",\"\")","v":""}]
[null,"",""]
[null,"",""]
[null,"",""]
[null,"",""]
[null,"",""]
[null,"",""]
[null,"",""]
[null,"",""]
[null,"",""]
[null,"",""]
[null,"",""]
[null,"",""]
[null,"",""]
[null,"",""]
[null,"",""]
[null,"",""]
[null,"",""]
[null,"",""]
[null,"",""]
[null,"",""]
[null,"",""]
[null,"",""]
[null,"",""]
[null,"",""]
[null,"",""]
[null,"",""]
[null,"",""]
[null,"",""]
[null,"",""]
[null,"",""]
[null,"",""]
[null,"",""]
[null,"",""]
[null,"",""]
[null,"",""]
[null,"",""]
[null,"",""]
[null,"",""]
[null,"",""]
[null,"",""]
[null,"",""]
[null,"",""]
[null,"",""]
[null,"",""]
[null,"",""]
[null,"",""]
[null,"",""]
[null,"",""]
[null,"",""]
[null,"",""]
[null,"",""]
[null,"",""]
[null,"",""]
[null,"",""]
[null,"",""]
[null,"",""]
[null,"",""]
[null,"",""]
[null,"",""]
[null,"",""]
[null,{"$f":"IF(D967<>\"\",B966+1,\"\")","v":""},""]
[null,"",""]
[null,"",""]
[null,"",{"$f":"IF(D970<>\"\",\"st\",\"\")","v":""}]
[null,"",""]
[null,"",""]
[null,"",""]
[null,"",""]
[null,"",""]
[null,"",""]
[null,"",""]
[null,"",""]
[null,"",""]
[null,"",""]
[null,"",""]
[null,"",""]
[null,"",""]
[null,"",""]
[null,"",""]
[null,"",""]
[null,"",""]
[null,"",""]
[null,"",""]
[null,"",""]
[null,"",""]
[null,"",""]
[null,"",""]
[null,"",""]
[null,"",""]
[null,"",""]
[null,"",""]
[null,"",""]
[null,"",""]
[null,"",""]

{"sheet":"kartoni","index":1,"n_rows":1000,"n_cols":15,"rows_kept":1000,"cut":false,"hidden":false,"merged":[[0,1,0,9],[6,9,7,9],[6,7,7,7],[6,3,7,3],[6,4,6,6],[6,1,7,1],[6,2,7,2]]}
[null,"K a r t o n     p a c i j e n t a"]
[]
[null,"red. Br","godine","Pacijent"]
[null,2,{"$f":"IF(B4<>\"\",VLOOKUP(B4,tblPacijenti,3,TRUE),\"\")","v":21},{"$f":"IF(B4<>\"\",VLOOKUP(B4,tblPacijenti,5,TRUE) &\" \" & VLOOKUP(B4,tblPacijenti,6,TRUE),\"\")","v":"rasa jovanov"},null,null,{"$f":"SUBTOTAL(109,G9:G508)","v":8900},null,{"$f":"SUBTOTAL(109,I9:I508)","v":6000}]
[null,null,"rođen",{"$f":"IF(B4<>\"\",VLOOKUP(B4,tblPacijenti,7,TRUE),\"\")","v":"1969-04-26"}]
[]
[null,"Redni broj","Datum pregleda","Anamneza","Predložena terapija",null,null,"Izvršena terapija","Plaćena terapija","Napomena"]
[null,null,null,null,"Terapija","predlog","Cena",null,"terapija"]
[null,1,"2021-04-10","Vratni mišić - izveštaj privatnog specijaliste das as as sdf sdfsdfsd","FTh, TECAR, Recovery 12","specijaliste",{"$f":"IFERROR(VLOOKUP(M9,tblCENOVNIK,3, FALSE),0)+IFERROR(VLOOKUP(N9,tblCENOVNIK,3, FALSE),0)+IFERROR(VLOOKUP(O9,tblCENOVNIK,3, FALSE),0)","v":4700},"1.- aparat TXVZ",1000,"Uplaćeno sve ili ništa",null,null,{"$f":"IFERROR(LEFT(E9,SEARCH(\",\",E9)-1),E9)","v":"FTh"},{"$f":"IFERROR(TRIM(IFERROR(MID(E9,SEARCH(\",\",E9)+1,SEARCH(\",\",E9,SEARCH(\",\",E9)+1)-SEARCH(\",\",E9)-1),\"\")),\"\")","v":"TECAR"},{"$f":"IFERROR(TRIM(IF(LEN(E9)-LEN(SUBSTITUTE(E9,\",\",\"\"))=1,RIGHT(E9,LEN(E9)-SEARCH(\",\",E9)),RIGHT(E9,LEN(E9)-SEARCH(\",\",E9,SEARCH(\",\",E9)+1)))),\"\")","v":"Recovery 12"}]
[null,1,"2021-04-11","Vratni mišić - izveštaj privatnog specijaliste","FTh, TECAR, DN","specijaliste",3800,"2.- aparat TXVZ",2000,null,null,null,{"$f":"IFERROR(LEFT(E10,SEARCH(\",\",E10)-1),E10)","v":"FTh"},{"$f":"IFERROR(TRIM(IFERROR(MID(E10,SEARCH(\",\",E10)+1,SEARCH(\",\",E10,SEARCH(\",\",E10)+1)-SEARCH(\",\",E10)-1),\"\")),\"\")","v":"TECAR"},{"$f":"IFERROR(TRIM(IF(LEN(E10)-LEN(SUBSTITUTE(E10,\",\",\"\"))=1,RIGHT(E10,LEN(E10)-SEARCH(\",\",E10)),RIGHT(E10,LEN(E10)-SEARCH(\",\",E10,SEARCH(\",\",E10)+1)))),\"\")","v":"DN"}]
[null,1,"2021-04-12","oporavak","Recovery 12, Rehab 1","specijaliste",4500,"aparat GFV",1000,null,null,null,"Recovery 12","","Rehab 1"]
[null,2,"2021-04-13","oporavak","Recovery 12, Masaža","specijaliste",{"$f":"SumCena(E12,'cenovnik-terapija'!B1:D34,3)","v":4100},"aparat GFV",6000,null,null,null,{"$f":"IFERROR(LEFT(E12,SEARCH(\",\",E12)-1),E12)","v":"Recovery 12"},{"$f":"IFERROR(TRIM(IFERROR(MID(E12,SEARCH(\",\",E12)+1,SEARCH(\",\",E12,SEARCH(\",\",E12)+1)-SEARCH(\",\",E12)-1),\"\")),\"\")","v":""},{"$f":"IFERROR(TRIM(IF(LEN(E12)-LEN(SUBSTITUTE(E12,\",\",\"\"))=1,RIGHT(E12,LEN(E12)-SEARCH(\",\",E12)),RIGHT(E12,LEN(E12)-SEARCH(\",\",E12,SEARCH(\",\",E12)+1)))),\"\")","v":"Masaža"}]
[null,3,"2021-04-16","teniski lakat","FTh + KTh, Ktape, KTh","specijaliste",3700,null,2000,null,null,null,"FTh + KTh","Ktape","KTh"]
[null,3,"2021-04-16","teniski lakat","FTh, TECAR, KTh, KTh","specijaliste",2500,null,null,null,null,null,"FTh","TECAR","KTh, KTh"]
[null,3,"2021-04-16","teniski lakat","KTh","specijaliste",1100,null,null,null,null,null,"KTh","",""]
[null,3,"2021-04-17",null,"KTh","specijaliste",1100,null,1500,null,null,null,"KTh","",""]
[null,2,"2021-04-20",null,"Rehab 1, Patronaža",null,{"$f":"SumCena(E17,'cenovnik-terapija'!B6:D39,3)","v":4800},null,null,null,null,null,"Rehab 1","","Patronaža"]
[null,3,"2021-04-22",null,"HVLA, Rehab 1","SportLand",5100,null,2000,null,null,null,"HVLA","","Rehab 1"]
[null,3,"2021-04-22",null,"KTh, TECAR","lični zahtev",2600,null,3000,null,null,null,"KTh","","TECAR"]
[null,3,"2021-04-24","nesto","Ktape, Sauna","lični zahtev",3400,null,null,null,null,null,"Ktape","","Sauna"]
[null,0,null,null,"",null,{"$f":"SumCena(E21,'cenovnik-terapija'!B10:D43,3)","v":0},null,null,null,null,null,"","",""]
[null,0,null,null,"",null,{"$f":"SumCena(E22,'cenovnik-terapija'!B11:D44,3)","v":0},null,null,null,null,null,"","",""]
[null,0,null,null,"",null,{"$f":"SumCena(E23,'cenovnik-terapija'!B12:D45,3)","v":0},null,null,null,null,null,"","",""]
[null,0,null,null,"",null,{"$f":"SumCena(E24,'cenovnik-terapija'!B13:D46,3)","v":0},null,null,null,null,null,"","",""]
[null,0,null,null,"",null,{"$f":"SumCena(E25,'cenovnik-terapija'!B14:D47,3)","v":0},null,null,null,null,null,"","",""]
[null,0,null,null,"",null,{"$f":"SumCena(E26,'cenovnik-terapija'!B15:D48,3)","v":0},null,null,null,null,null,"","",""]
[null,0,null,null,"",null,{"$f":"SumCena(E27,'cenovnik-terapija'!B16:D49,3)","v":0},null,null,null,null,null,"","",""]
[null,0,null,null,"",null,{"$f":"SumCena(E28,'cenovnik-terapija'!B17:D50,3)","v":0},null,null,null,null,null,"","",""]
[null,0,null,null,"",null,{"$f":"SumCena(E29,'cenovnik-terapija'!B18:D51,3)","v":0},null,null,null,null,null,"","",""]
[null,0,null,null,"",null,{"$f":"SumCena(E30,'cenovnik-terapija'!B19:D52,3)","v":0},null,null,null,null,null,"","",""]
[null,0,null,null,"",null,{"$f":"SumCena(E31,'cenovnik-terapija'!B20:D53,3)","v":0},null,null,null,null,null,"","",""]
[null,0,null,null,"",null,{"$f":"SumCena(E32,'cenovnik-terapija'!B21:D54,3)","v":0},null,null,null,null,null,"","",""]
[null,0,null,null,"",null,{"$f":"SumCena(E33,'cenovnik-terapija'!B22:D55,3)","v":0},null,null,null,null,null,"","",""]
[null,0,null,null,"",null,{"$f":"SumCena(E34,'cenovnik-terapija'!B23:D56,3)","v":0},null,null,null,null,null,"","",""]
[null,0,null,null,"",null,{"$f":"SumCena(E35,'cenovnik-terapija'!B24:D57,3)","v":0},null,null,null,null,null,"","",""]
[null,0,null,null,"",null,{"$f":"SumCena(E36,'cenovnik-terapija'!B25:D58,3)","v":0},null,null,null,null,null,"","",""]
[null,0,null,null,"",null,{"$f":"SumCena(E37,'cenovnik-terapija'!B26:D59,3)","v":0},null,null,null,null,null,"","",""]
[null,0,null,null,"",null,{"$f":"SumCena(E38,'cenovnik-terapija'!B27:D60,3)","v":0},null,null,null,null,null,"","",""]
[null,0,null,null,"",null,{"$f":"SumCena(E39,'cenovnik-terapija'!B28:D61,3)","v":0},null,null,null,null,null,"","",""]
[null,0,null,null,"",null,null,null,null,null,null,null,"","",""]
[null,0,null,null,"",null,null,null,null,null,null,null,"","",""]
[null,0,null,null,"",null,null,null,null,null,null,null,"","",""]
[null,0,null,null,"",null,null,null,null,null,null,null,"","",""]
[null,0,null,null,"",null,null,null,null,null,null,null,"","",""]
[null,0,null,null,"",null,{"$f":"SumCena(E45,'cenovnik-terapija'!B34:D67,3)","v":0},null,null,null,null,null,"","",""]
[null,0,null,null,"",null,{"$f":"SumCena(E46,'cenovnik-terapija'!B35:D68,3)","v":0},null,null,null,null,null,"","",""]
[null,0,null,null,"",null,{"$f":"SumCena(E47,'cenovnik-terapija'!B36:D69,3)","v":0},null,null,null,null,null,"","",""]
[null,0,null,null,"",null,{"$f":"SumCena(E48,'cenovnik-terapija'!B37:D70,3)","v":0},null,null,null,null,null,"","",""]
[null,0,null,null,"",null,{"$f":"SumCena(E49,'cenovnik-terapija'!B38:D71,3)","v":0},null,null,null,null,null,"","",""]
[null,0,null,null,"",null,{"$f":"SumCena(E50,'cenovnik-terapija'!B39:D72,3)","v":0},null,null,null,null,null,"","",""]
[null,0,null,null,"",null,{"$f":"SumCena(E51,'cenovnik-terapija'!B40:D73,3)","v":0},null,null,null,null,null,"","",""]
[null,0,null,null,"",null,{"$f":"SumCena(E52,'cenovnik-terapija'!B41:D74,3)","v":0},null,null,null,null,null,"","",""]
[null,0,null,null,"",null,{"$f":"SumCena(E53,'cenovnik-terapija'!B42:D75,3)","v":0},null,null,null,null,null,"","",""]
[null,0,null,null,"",null,{"$f":"SumCena(E54,'cenovnik-terapija'!B43:D76,3)","v":0},null,null,null,null,null,"","",""]
[null,0,null,null,"",null,{"$f":"SumCena(E55,'cenovnik-terapija'!B44:D77,3)","v":0},null,null,null,null,null,"","",""]
[null,0,null,null,"",null,{"$f":"SumCena(E56,'cenovnik-terapija'!B45:D78,3)","v":0},null,null,null,null,null,"","",""]
[null,0,null,null,"",null,{"$f":"SumCena(E57,'cenovnik-terapija'!B46:D79,3)","v":0},null,null,null,null,null,"","",""]
[null,0,null,null,"",null,{"$f":"SumCena(E58,'cenovnik-terapija'!B47:D80,3)","v":0},null,null,null,null,null,"","",""]
[null,0,null,null,"",null,{"$f":"SumCena(E59,'cenovnik-terapija'!B48:D81,3)","v":0},null,null,null,null,null,"","",""]
[null,0,null,null,"",null,{"$f":"SumCena(E60,'cenovnik-terapija'!B49:D82,3)","v":0},null,null,null,null,null,"","",""]
[null,0,null,null,"",null,{"$f":"SumCena(E61,'cenovnik-terapija'!B50:D83,3)","v":0},null,null,null,null,null,"","",""]
[null,0,null,null,"",null,{"$f":"SumCena(E62,'cenovnik-terapija'!B51:D84,3)","v":0},null,null,null,null,null,"","",""]
[null,0,null,null,"",null,{"$f":"SumCena(E63,'cenovnik-terapija'!B52:D85,3)","v":0},null,null,null,null,null,"","",""]
[null,0,null,null,"",null,{"$f":"SumCena(E64,'cenovnik-terapija'!B53:D86,3)","v":0},null,null,null,null,null,"","",""]
[null,0,null,null,"",null,{"$f":"SumCena(E65,'cenovnik-terapija'!B54:D87,3)","v":0},null,null,null,null,null,"","",""]
[null,0,null,null,"",null,{"$f":"SumCena(E66,'cenovnik-terapija'!B55:D88,3)","v":0},null,null,null,null,null,"","",""]
[null,0,null,null,"",null,{"$f":"SumCena(E67,'cenovnik-terapija'!B56:D89,3)","v":0},null,null,null,null,null,"","",""]
[null,0,null,null,"",null,{"$f":"SumCena(E68,'cenovnik-terapija'!B57:D90,3)","v":0},null,null,null,null,null,"","",""]
[null,0,null,null,"",null,{"$f":"SumCena(E69,'cenovnik-terapija'!B58:D91,3)","v":0},null,null,null,null,null,"","",""]
[null,0,null,null,"",null,{"$f":"SumCena(E70,'cenovnik-terapija'!B59:D92,3)","v":0},null,null,null,null,null,"","",""]
[null,0,null,null,"",null,{"$f":"SumCena(E71,'cenovnik-terapija'!B60:D93,3)","v":0},null,null,null,null,null,"","",""]
[null,0,null,null,"",null,{"$f":"SumCena(E72,'cenovnik-terapija'!B61:D94,3)","v":0},null,null,null,null,null,"","",""]
[null,0,null,null,"",null,{"$f":"SumCena(E73,'cenovnik-terapija'!B62:D95,3)","v":0},null,null,null,null,null,"","",""]
[null,0,null,null,"",null,{"$f":"SumCena(E74,'cenovnik-terapija'!B63:D96,3)","v":0},null,null,null,null,null,"","",""]
[null,0,null,null,"",null,{"$f":"SumCena(E75,'cenovnik-terapija'!B64:D97,3)","v":0},null,null,null,null,null,"","",""]
[null,0,null,null,"",null,{"$f":"SumCena(E76,'cenovnik-terapija'!B65:D98,3)","v":0},null,null,null,null,null,{"$f":"IFERROR(LEFT(E76,SEARCH(\",\",E76)-1),E76)","v":""},{"$f":"IFERROR(TRIM(IFERROR(MID(E76,SEARCH(\",\",E76)+1,SEARCH(\",\",E76,SEARCH(\",\",E76)+1)-SEARCH(\",\",E76)-1),\"\")),\"\")","v":""},{"$f":"IFERROR(TRIM(IF(LEN(E76)-LEN(SUBSTITUTE(E76,\",\",\"\"))=1,RIGHT(E76,LEN(E76)-SEARCH(\",\",E76)),RIGHT(E76,LEN(E76)-SEARCH(\",\",E76,SEARCH(\",\",E76)+1)))),\"\")","v":""}]
[null,0,null,null,"",null,{"$f":"SumCena(E77,'cenovnik-terapija'!B66:D99,3)","v":0},null,null,null,null,null,"","",""]
[null,0,null,null,"",null,{"$f":"SumCena(E78,'cenovnik-terapija'!B67:D100,3)","v":0},null,null,null,null,null,"","",""]
[null,0,null,null,"",null,{"$f":"SumCena(E79,'cenovnik-terapija'!B68:D101,3)","v":0},null,null,null,null,null,"","",""]
[null,0,null,null,"",null,{"$f":"SumCena(E80,'cenovnik-terapija'!B69:D102,3)","v":0},null,null,null,null,null,"","",""]
[null,0,null,null,"",null,{"$f":"SumCena(E81,'cenovnik-terapija'!B70:D103,3)","v":0},null,null,null,null,null,"","",""]
[null,0,null,null,"",null,{"$f":"SumCena(E82,'cenovnik-terapija'!B71:D104,3)","v":0},null,null,null,null,null,"","",""]
[null,0,null,null,"",null,{"$f":"SumCena(E83,'cenovnik-terapija'!B72:D105,3)","v":0},null,null,null,null,null,"","",""]
[null,0,null,null,"",null,{"$f":"SumCena(E84,'cenovnik-terapija'!B73:D106,3)","v":0},null,null,null,null,null,"","",""]
[null,0,null,null,"",null,{"$f":"SumCena(E85,'cenovnik-terapija'!B74:D107,3)","v":0},null,null,null,null,null,"","",""]
[null,0,null,null,"",null,{"$f":"SumCena(E86,'cenovnik-terapija'!B75:D108,3)","v":0},null,null,null,null,null,"","",""]
[null,0,null,null,"",null,{"$f":"SumCena(E87,'cenovnik-terapija'!B76:D109,3)","v":0},null,null,null,null,null,"","",""]
[null,0,null,null,"",null,{"$f":"SumCena(E88,'cenovnik-terapija'!B77:D110,3)","v":0},null,null,null,null,null,"","",""]
[null,0,null,null,"",null,{"$f":"SumCena(E89,'cenovnik-terapija'!B78:D111,3)","v":0},null,null,null,null,null,"","",""]
[null,0,null,null,"",null,{"$f":"SumCena(E90,'cenovnik-terapija'!B79:D112,3)","v":0},null,null,null,null,null,"","",""]
[null,0,null,null,"",null,{"$f":"SumCena(E91,'cenovnik-terapija'!B80:D113,3)","v":0},null,null,null,null,null,"","",""]
[null,0,null,null,"",null,{"$f":"SumCena(E92,'cenovnik-terapija'!B81:D114,3)","v":0},null,null,null,null,null,"","",""]
[null,0,null,null,"",null,{"$f":"SumCena(E93,'cenovnik-terapija'!B82:D115,3)","v":0},null,null,null,null,null,"","",""]
[null,0,null,null,"",null,{"$f":"SumCena(E94,'cenovnik-terapija'!B83:D116,3)","v":0},null,null,null,null,null,"","",""]
[null,0,null,null,"",null,{"$f":"SumCena(E95,'cenovnik-terapija'!B84:D117,3)","v":0},null,null,null,null,null,"","",""]
[null,0,null,null,"",null,{"$f":"SumCena(E96,'cenovnik-terapija'!B85:D118,3)","v":0},null,null,null,null,null,"","",""]
[null,0,null,null,"",null,{"$f":"SumCena(E97,'cenovnik-terapija'!B86:D119,3)","v":0},null,null,null,null,null,"","",""]
[null,0,null,null,"",null,{"$f":"SumCena(E98,'cenovnik-terapija'!B87:D120,3)","v":0},null,null,null,null,null,"","",""]
[null,0,null,null,"",null,{"$f":"SumCena(E99,'cenovnik-terapija'!B88:D121,3)","v":0},null,null,null,null,null,"","",""]
[null,0,null,null,"",null,{"$f":"SumCena(E100,'cenovnik-terapija'!B89:D122,3)","v":0},null,null,null,null,null,"","",""]
[null,0,null,null,"",null,{"$f":"SumCena(E101,'cenovnik-terapija'!B90:D123,3)","v":0},null,null,null,null,null,"","",""]
[null,0,null,null,"",null,{"$f":"SumCena(E102,'cenovnik-terapija'!B91:D124,3)","v":0},null,null,null,null,null,"","",""]
[null,0,null,null,"",null,{"$f":"SumCena(E103,'cenovnik-terapija'!B92:D125,3)","v":0},null,null,null,null,null,"","",""]
[null,0,null,null,"",null,{"$f":"SumCena(E104,'cenovnik-terapija'!B93:D126,3)","v":0},null,null,null,null,null,"","",""]
[null,0,null,null,"",null,{"$f":"SumCena(E105,'cenovnik-terapija'!B94:D127,3)","v":0},null,null,null,null,null,"","",""]
[null,0,null,null,"",null,{"$f":"SumCena(E106,'cenovnik-terapija'!B95:D128,3)","v":0},null,null,null,null,null,"","",""]
[null,0,null,null,"",null,{"$f":"SumCena(E107,'cenovnik-terapija'!B96:D129,3)","v":0},null,null,null,null,null,"","",""]
[null,0,null,null,"",null,{"$f":"SumCena(E108,'cenovnik-terapija'!B97:D130,3)","v":0},null,null,null,null,null,"","",""]
[null,0,null,null,"",null,{"$f":"SumCena(E109,'cenovnik-terapija'!B98:D131,3)","v":0},null,null,null,null,null,"","",""]
[null,0,null,null,"",null,{"$f":"SumCena(E110,'cenovnik-terapija'!B99:D132,3)","v":0},null,null,null,null,null,"","",""]
[null,0,null,null,"",null,{"$f":"SumCena(E111,'cenovnik-terapija'!B100:D133,3)","v":0},null,null,null,null,null,"","",""]
[null,0,null,null,"",null,{"$f":"SumCena(E112,'cenovnik-terapija'!B101:D134,3)","v":0},null,null,null,null,null,"","",""]
[null,0,null,null,"",null,{"$f":"SumCena(E113,'cenovnik-terapija'!B102:D135,3)","v":0},null,null,null,null,null,"","",""]
[null,0,null,null,"",null,{"$f":"SumCena(E114,'cenovnik-terapija'!B103:D136,3)","v":0},null,null,null,null,null,"","",""]
[null,0,null,null,"",null,{"$f":"SumCena(E115,'cenovnik-terapija'!B104:D137,3)","v":0},null,null,null,null,null,"","",""]
[null,0,null,null,"",null,{"$f":"SumCena(E116,'cenovnik-terapija'!B105:D138,3)","v":0},null,null,null,null,null,"","",""]
[null,0,null,null,"",null,{"$f":"SumCena(E117,'cenovnik-terapija'!B106:D139,3)","v":0},null,null,null,null,null,"","",""]
[null,0,null,null,"",null,{"$f":"SumCena(E118,'cenovnik-terapija'!B107:D140,3)","v":0},null,null,null,null,null,"","",""]
[null,0,null,null,"",null,{"$f":"SumCena(E119,'cenovnik-terapija'!B108:D141,3)","v":0},null,null,null,null,null,"","",""]
[null,0,null,null,"",null,{"$f":"SumCena(E120,'cenovnik-terapija'!B109:D142,3)","v":0},null,null,null,null,null,"","",""]
[null,0,null,null,"",null,{"$f":"SumCena(E121,'cenovnik-terapija'!B110:D143,3)","v":0},null,null,null,null,null,"","",""]
[null,0,null,null,"",null,{"$f":"SumCena(E122,'cenovnik-terapija'!B111:D144,3)","v":0},null,null,null,null,null,"","",""]
[null,0,null,null,"",null,{"$f":"SumCena(E123,'cenovnik-terapija'!B112:D145,3)","v":0},null,null,null,null,null,"","",""]
[null,0,null,null,"",null,{"$f":"SumCena(E124,'cenovnik-terapija'!B113:D146,3)","v":0},null,null,null,null,null,"","",""]
[null,0,null,null,"",null,{"$f":"SumCena(E125,'cenovnik-terapija'!B114:D147,3)","v":0},null,null,null,null,null,"","",""]
[null,0,null,null,"",null,{"$f":"SumCena(E126,'cenovnik-terapija'!B115:D148,3)","v":0},null,null,null,null,null,"","",""]
[null,0,null,null,"",null,{"$f":"SumCena(E127,'cenovnik-terapija'!B116:D149,3)","v":0},null,null,null,null,null,"","",""]
[null,0,null,null,"",null,{"$f":"SumCena(E128,'cenovnik-terapija'!B117:D150,3)","v":0},null,null,null,null,null,"","",""]
[null,0,null,null,"",null,{"$f":"SumCena(E129,'cenovnik-terapija'!B118:D151,3)","v":0},null,null,null,null,null,"","",""]
[null,0,null,null,"",null,{"$f":"SumCena(E130,'cenovnik-terapija'!B119:D152,3)","v":0},null,null,null,null,null,"","",""]
[null,0,null,null,"",null,{"$f":"SumCena(E131,'cenovnik-terapija'!B120:D153,3)","v":0},null,null,null,null,null,"","",""]
[null,0,null,null,"",null,{"$f":"SumCena(E132,'cenovnik-terapija'!B121:D154,3)","v":0},null,null,null,null,null,"","",""]
[null,0,null,null,"",null,{"$f":"SumCena(E133,'cenovnik-terapija'!B122:D155,3)","v":0},null,null,null,null,null,"","",""]
[null,0,null,null,"",null,{"$f":"SumCena(E134,'cenovnik-terapija'!B123:D156,3)","v":0},null,null,null,null,null,"","",""]
[null,0,null,null,"",null,{"$f":"SumCena(E135,'cenovnik-terapija'!B124:D157,3)","v":0},null,null,null,null,null,"","",""]
[null,0,null,null,"",null,{"$f":"SumCena(E136,'cenovnik-terapija'!B125:D158,3)","v":0},null,null,null,null,null,"","",""]
[null,0,null,null,"",null,{"$f":"SumCena(E137,'cenovnik-terapija'!B126:D159,3)","v":0},null,null,null,null,null,"","",""]
[null,0,null,null,"",null,{"$f":"SumCena(E138,'cenovnik-terapija'!B127:D160,3)","v":0},null,null,null,null,null,"","",""]
[null,0,null,null,"",null,{"$f":"SumCena(E139,'cenovnik-terapija'!B128:D161,3)","v":0},null,null,null,null,null,"","",""]
[null,0,null,null,"",null,{"$f":"SumCena(E140,'cenovnik-terapija'!B129:D162,3)","v":0},null,null,null,null,null,{"$f":"IFERROR(LEFT(E140,SEARCH(\",\",E140)-1),E140)","v":""},{"$f":"IFERROR(TRIM(IFERROR(MID(E140,SEARCH(\",\",E140)+1,SEARCH(\",\",E140,SEARCH(\",\",E140)+1)-SEARCH(\",\",E140)-1),\"\")),\"\")","v":""},{"$f":"IFERROR(TRIM(IF(LEN(E140)-LEN(SUBSTITUTE(E140,\",\",\"\"))=1,RIGHT(E140,LEN(E140)-SEARCH(\",\",E140)),RIGHT(E140,LEN(E140)-SEARCH(\",\",E140,SEARCH(\",\",E140)+1)))),\"\")","v":""}]
[null,0,null,null,"",null,{"$f":"SumCena(E141,'cenovnik-terapija'!B130:D163,3)","v":0},null,null,null,null,null,"","",""]
[null,0,null,null,"",null,{"$f":"SumCena(E142,'cenovnik-terapija'!B131:D164,3)","v":0},null,null,null,null,null,"","",""]
[null,0,null,null,"",null,{"$f":"SumCena(E143,'cenovnik-terapija'!B132:D165,3)","v":0},null,null,null,null,null,"","",""]
[null,0,null,null,"",null,{"$f":"SumCena(E144,'cenovnik-terapija'!B133:D166,3)","v":0},null,null,null,null,null,"","",""]
[null,0,null,null,"",null,{"$f":"SumCena(E145,'cenovnik-terapija'!B134:D167,3)","v":0},null,null,null,null,null,"","",""]
[null,0,null,null,"",null,{"$f":"SumCena(E146,'cenovnik-terapija'!B135:D168,3)","v":0},null,null,null,null,null,"","",""]
[null,0,null,null,"",null,{"$f":"SumCena(E147,'cenovnik-terapija'!B136:D169,3)","v":0},null,null,null,null,null,"","",""]
[null,0,null,null,"",null,{"$f":"SumCena(E148,'cenovnik-terapija'!B137:D170,3)","v":0},null,null,null,null,null,"","",""]
[null,0,null,null,"",null,{"$f":"SumCena(E149,'cenovnik-terapija'!B138:D171,3)","v":0},null,null,null,null,null,"","",""]
[null,0,null,null,"",null,{"$f":"SumCena(E150,'cenovnik-terapija'!B139:D172,3)","v":0},null,null,null,null,null,"","",""]
[null,0,null,null,"",null,{"$f":"SumCena(E151,'cenovnik-terapija'!B140:D173,3)","v":0},null,null,null,null,null,"","",""]
[null,0,null,null,"",null,{"$f":"SumCena(E152,'cenovnik-terapija'!B141:D174,3)","v":0},null,null,null,null,null,"","",""]
[null,0,null,null,"",null,{"$f":"SumCena(E153,'cenovnik-terapija'!B142:D175,3)","v":0},null,null,null,null,null,"","",""]
[null,0,null,null,"",null,{"$f":"SumCena(E154,'cenovnik-terapija'!B143:D176,3)","v":0},null,null,null,null,null,"","",""]
[null,0,null,null,"",null,{"$f":"SumCena(E155,'cenovnik-terapija'!B144:D177,3)","v":0},null,null,null,null,null,"","",""]
[null,0,null,null,"",null,{"$f":"SumCena(E156,'cenovnik-terapija'!B145:D178,3)","v":0},null,null,null,null,null,"","",""]
[null,0,null,null,"",null,{"$f":"SumCena(E157,'cenovnik-terapija'!B146:D179,3)","v":0},null,null,null,null,null,"","",""]
[null,0,null,null,"",null,{"$f":"SumCena(E158,'cenovnik-terapija'!B147:D180,3)","v":0},null,null,null,null,null,"","",""]
[null,0,null,null,"",null,{"$f":"SumCena(E159,'cenovnik-terapija'!B148:D181,3)","v":0},null,null,null,null,null,"","",""]
[null,0,null,null,"",null,{"$f":"SumCena(E160,'cenovnik-terapija'!B149:D182,3)","v":0},null,null,null,null,null,"","",""]
[null,0,null,null,"",null,{"$f":"SumCena(E161,'cenovnik-terapija'!B150:D183,3)","v":0},null,null,null,null,null,"","",""]
[null,0,null,null,"",null,{"$f":"SumCena(E162,'cenovnik-terapija'!B151:D184,3)","v":0},null,null,null,null,null,"","",""]
[null,0,null,null,"",null,{"$f":"SumCena(E163,'cenovnik-terapija'!B152:D185,3)","v":0},null,null,null,null,null,"","",""]
[null,0,null,null,"",null,{"$f":"SumCena(E164,'cenovnik-terapija'!B153:D186,3)","v":0},null,null,null,null,null,"","",""]
[null,0,null,null,"",null,{"$f":"SumCena(E165,'cenovnik-terapija'!B154:D187,3)","v":0},null,null,null,null,null,"","",""]
[null,0,null,null,"",null,{"$f":"SumCena(E166,'cenovnik-terapija'!B155:D188,3)","v":0},null,null,null,null,null,"","",""]
[null,0,null,null,"",null,{"$f":"SumCena(E167,'cenovnik-terapija'!B156:D189,3)","v":0},null,null,null,null,null,"","",""]
[null,0,null,null,"",null,{"$f":"SumCena(E168,'cenovnik-terapija'!B157:D190,3)","v":0},null,null,null,null,null,"","",""]
[null,0,null,null,"",null,{"$f":"SumCena(E169,'cenovnik-terapija'!B158:D191,3)","v":0},null,null,null,null,null,"","",""]
[null,0,null,null,"",null,{"$f":"SumCena(E170,'cenovnik-terapija'!B159:D192,3)","v":0},null,null,null,null,null,"","",""]
[null,0,null,null,"",null,{"$f":"SumCena(E171,'cenovnik-terapija'!B160:D193,3)","v":0},null,null,null,null,null,"","",""]
[null,0,null,null,"",null,{"$f":"SumCena(E172,'cenovnik-terapija'!B161:D194,3)","v":0},null,null,null,null,null,"","",""]
[null,0,null,null,"",null,{"$f":"SumCena(E173,'cenovnik-terapija'!B162:D195,3)","v":0},null,null,null,null,null,"","",""]
[null,0,null,null,"",null,{"$f":"SumCena(E174,'cenovnik-terapija'!B163:D196,3)","v":0},null,null,null,null,null,"","",""]
[null,0,null,null,"",null,{"$f":"SumCena(E175,'cenovnik-terapija'!B164:D197,3)","v":0},null,null,null,null,null,"","",""]
[null,0,null,null,"",null,{"$f":"SumCena(E176,'cenovnik-terapija'!B165:D198,3)","v":0},null,null,null,null,null,"","",""]
[null,0,null,null,"",null,{"$f":"SumCena(E177,'cenovnik-terapija'!B166:D199,3)","v":0},null,null,null,null,null,"","",""]
[null,0,null,null,"",null,{"$f":"SumCena(E178,'cenovnik-terapija'!B167:D200,3)","v":0},null,null,null,null,null,"","",""]
[null,0,null,null,"",null,{"$f":"SumCena(E179,'cenovnik-terapija'!B168:D201,3)","v":0},null,null,null,null,null,"","",""]
[null,0,null,null,"",null,{"$f":"SumCena(E180,'cenovnik-terapija'!B169:D202,3)","v":0},null,null,null,null,null,"","",""]
[null,0,null,null,"",null,{"$f":"SumCena(E181,'cenovnik-terapija'!B170:D203,3)","v":0},null,null,null,null,null,"","",""]
[null,0,null,null,"",null,{"$f":"SumCena(E182,'cenovnik-terapija'!B171:D204,3)","v":0},null,null,null,null,null,"","",""]
[null,0,null,null,"",null,{"$f":"SumCena(E183,'cenovnik-terapija'!B172:D205,3)","v":0},null,null,null,null,null,"","",""]
[null,0,null,null,"",null,{"$f":"SumCena(E184,'cenovnik-terapija'!B173:D206,3)","v":0},null,null,null,null,null,"","",""]
[null,0,null,null,"",null,{"$f":"SumCena(E185,'cenovnik-terapija'!B174:D207,3)","v":0},null,null,null,null,null,"","",""]
[null,0,null,null,"",null,{"$f":"SumCena(E186,'cenovnik-terapija'!B175:D208,3)","v":0},null,null,null,null,null,"","",""]
[null,0,null,null,"",null,{"$f":"SumCena(E187,'cenovnik-terapija'!B176:D209,3)","v":0},null,null,null,null,null,"","",""]
[null,0,null,null,"",null,{"$f":"SumCena(E188,'cenovnik-terapija'!B177:D210,3)","v":0},null,null,null,null,null,"","",""]
[null,0,null,null,"",null,{"$f":"SumCena(E189,'cenovnik-terapija'!B178:D211,3)","v":0},null,null,null,null,null,"","",""]
[null,0,null,null,"",null,{"$f":"SumCena(E190,'cenovnik-terapija'!B179:D212,3)","v":0},null,null,null,null,null,"","",""]
[null,0,null,null,"",null,{"$f":"SumCena(E191,'cenovnik-terapija'!B180:D213,3)","v":0},null,null,null,null,null,"","",""]
[null,0,null,null,"",null,{"$f":"SumCena(E192,'cenovnik-terapija'!B181:D214,3)","v":0},null,null,null,null,null,"","",""]
[null,0,null,null,"",null,{"$f":"SumCena(E193,'cenovnik-terapija'!B182:D215,3)","v":0},null,null,null,null,null,"","",""]
[null,0,null,null,"",null,{"$f":"SumCena(E194,'cenovnik-terapija'!B183:D216,3)","v":0},null,null,null,null,null,"","",""]
[null,0,null,null,"",null,{"$f":"SumCena(E195,'cenovnik-terapija'!B184:D217,3)","v":0},null,null,null,null,null,"","",""]
[null,0,null,null,"",null,{"$f":"SumCena(E196,'cenovnik-terapija'!B185:D218,3)","v":0},null,null,null,null,null,"","",""]
[null,0,null,null,"",null,{"$f":"SumCena(E197,'cenovnik-terapija'!B186:D219,3)","v":0},null,null,null,null,null,"","",""]
[null,0,null,null,"",null,{"$f":"SumCena(E198,'cenovnik-terapija'!B187:D220,3)","v":0},null,null,null,null,null,"","",""]
[null,0,null,null,"",null,{"$f":"SumCena(E199,'cenovnik-terapija'!B188:D221,3)","v":0},null,null,null,null,null,"","",""]
[null,0,null,null,"",null,{"$f":"SumCena(E200,'cenovnik-terapija'!B189:D222,3)","v":0},null,null,null,null,null,"","",""]
[null,0,null,null,"",null,{"$f":"SumCena(E201,'cenovnik-terapija'!B190:D223,3)","v":0},null,null,null,null,null,"","",""]
[null,0,null,null,"",null,{"$f":"SumCena(E202,'cenovnik-terapija'!B191:D224,3)","v":0},null,null,null,null,null,"","",""]
[null,0,null,null,"",null,{"$f":"SumCena(E203,'cenovnik-terapija'!B192:D225,3)","v":0},null,null,null,null,null,"","",""]
[null,0,null,null,"",null,{"$f":"SumCena(E204,'cenovnik-terapija'!B193:D226,3)","v":0},null,null,null,null,null,{"$f":"IFERROR(LEFT(E204,SEARCH(\",\",E204)-1),E204)","v":""},{"$f":"IFERROR(TRIM(IFERROR(MID(E204,SEARCH(\",\",E204)+1,SEARCH(\",\",E204,SEARCH(\",\",E204)+1)-SEARCH(\",\",E204)-1),\"\")),\"\")","v":""},{"$f":"IFERROR(TRIM(IF(LEN(E204)-LEN(SUBSTITUTE(E204,\",\",\"\"))=1,RIGHT(E204,LEN(E204)-SEARCH(\",\",E204)),RIGHT(E204,LEN(E204)-SEARCH(\",\",E204,SEARCH(\",\",E204)+1)))),\"\")","v":""}]
[null,0,null,null,"",null,{"$f":"SumCena(E205,'cenovnik-terapija'!B194:D227,3)","v":0},null,null,null,null,null,"","",""]
[null,0,null,null,"",null,{"$f":"SumCena(E206,'cenovnik-terapija'!B195:D228,3)","v":0},null,null,null,null,null,"","",""]
[null,0,null,null,"",null,{"$f":"SumCena(E207,'cenovnik-terapija'!B196:D229,3)","v":0},null,null,null,null,null,"","",""]
[null,0,null,null,"",null,{"$f":"SumCena(E208,'cenovnik-terapija'!B197:D230,3)","v":0},null,null,null,null,null,"","",""]
[null,0,null,null,"",null,{"$f":"SumCena(E209,'cenovnik-terapija'!B198:D231,3)","v":0},null,null,null,null,null,"","",""]
[null,0,null,null,"",null,{"$f":"SumCena(E210,'cenovnik-terapija'!B199:D232,3)","v":0},null,null,null,null,null,"","",""]
[null,0,null,null,"",null,{"$f":"SumCena(E211,'cenovnik-terapija'!B200:D233,3)","v":0},null,null,null,null,null,"","",""]
[null,0,null,null,"",null,{"$f":"SumCena(E212,'cenovnik-terapija'!B201:D234,3)","v":0},null,null,null,null,null,"","",""]
[null,0,null,null,"",null,{"$f":"SumCena(E213,'cenovnik-terapija'!B202:D235,3)","v":0},null,null,null,null,null,"","",""]
[null,0,null,null,"",null,{"$f":"SumCena(E214,'cenovnik-terapija'!B203:D236,3)","v":0},null,null,null,null,null,"","",""]
[null,0,null,null,"",null,{"$f":"SumCena(E215,'cenovnik-terapija'!B204:D237,3)","v":0},null,null,null,null,null,"","",""]
[null,0,null,null,"",null,{"$f":"SumCena(E216,'cenovnik-terapija'!B205:D238,3)","v":0},null,null,null,null,null,"","",""]
[null,0,null,null,"",null,{"$f":"SumCena(E217,'cenovnik-terapija'!B206:D239,3)","v":0},null,null,null,null,null,"","",""]
[null,0,null,null,"",null,{"$f":"SumCena(E218,'cenovnik-terapija'!B207:D240,3)","v":0},null,null,null,null,null,"","",""]
[null,0,null,null,"",null,{"$f":"SumCena(E219,'cenovnik-terapija'!B208:D241,3)","v":0},null,null,null,null,null,"","",""]
[null,0,null,null,"",null,{"$f":"SumCena(E220,'cenovnik-terapija'!B209:D242,3)","v":0},null,null,null,null,null,"","",""]
[null,0,null,null,"",null,{"$f":"SumCena(E221,'cenovnik-terapija'!B210:D243,3)","v":0},null,null,null,null,null,"","",""]
[null,0,null,null,"",null,{"$f":"SumCena(E222,'cenovnik-terapija'!B211:D244,3)","v":0},null,null,null,null,null,"","",""]
[null,0,null,null,"",null,{"$f":"SumCena(E223,'cenovnik-terapija'!B212:D245,3)","v":0},null,null,null,null,null,"","",""]
[null,0,null,null,"",null,{"$f":"SumCena(E224,'cenovnik-terapija'!B213:D246,3)","v":0},null,null,null,null,null,"","",""]
[null,0,null,null,"",null,{"$f":"SumCena(E225,'cenovnik-terapija'!B214:D247,3)","v":0},null,null,null,null,null,"","",""]
[null,0,null,null,"",null,{"$f":"SumCena(E226,'cenovnik-terapija'!B215:D248,3)","v":0},null,null,null,null,null,"","",""]
[null,0,null,null,"",null,{"$f":"SumCena(E227,'cenovnik-terapija'!B216:D249,3)","v":0},null,null,null,null,null,"","",""]
[null,0,null,null,"",null,{"$f":"SumCena(E228,'cenovnik-terapija'!B217:D250,3)","v":0},null,null,null,null,null,"","",""]
[null,0,null,null,"",null,{"$f":"SumCena(E229,'cenovnik-terapija'!B218:D251,3)","v":0},null,null,null,null,null,"","",""]
[null,0,null,null,"",null,{"$f":"SumCena(E230,'cenovnik-terapija'!B219:D252,3)","v":0},null,null,null,null,null,"","",""]
[null,0,null,null,"",null,{"$f":"SumCena(E231,'cenovnik-terapija'!B220:D253,3)","v":0},null,null,null,null,null,"","",""]
[null,0,null,null,"",null,{"$f":"SumCena(E232,'cenovnik-terapija'!B221:D254,3)","v":0},null,null,null,null,null,"","",""]
[null,0,null,null,"",null,{"$f":"SumCena(E233,'cenovnik-terapija'!B222:D255,3)","v":0},null,null,null,null,null,"","",""]
[null,0,null,null,"",null,{"$f":"SumCena(E234,'cenovnik-terapija'!B223:D256,3)","v":0},null,null,null,null,null,"","",""]
[null,0,null,null,"",null,{"$f":"SumCena(E235,'cenovnik-terapija'!B224:D257,3)","v":0},null,null,null,null,null,"","",""]
[null,0,null,null,"",null,{"$f":"SumCena(E236,'cenovnik-terapija'!B225:D258,3)","v":0},null,null,null,null,null,"","",""]
[null,0,null,null,"",null,{"$f":"SumCena(E237,'cenovnik-terapija'!B226:D259,3)","v":0},null,null,null,null,null,"","",""]
[null,0,null,null,"",null,{"$f":"SumCena(E238,'cenovnik-terapija'!B227:D260,3)","v":0},null,null,null,null,null,"","",""]
[null,0,null,null,"",null,{"$f":"SumCena(E239,'cenovnik-terapija'!B228:D261,3)","v":0},null,null,null,null,null,"","",""]
[null,0,null,null,"",null,{"$f":"SumCena(E240,'cenovnik-terapija'!B229:D262,3)","v":0},null,null,null,null,null,"","",""]
[null,0,null,null,"",null,{"$f":"SumCena(E241,'cenovnik-terapija'!B230:D263,3)","v":0},null,null,null,null,null,"","",""]
[null,0,null,null,"",null,{"$f":"SumCena(E242,'cenovnik-terapija'!B231:D264,3)","v":0},null,null,null,null,null,"","",""]
[null,0,null,null,"",null,{"$f":"SumCena(E243,'cenovnik-terapija'!B232:D265,3)","v":0},null,null,null,null,null,"","",""]
[null,0,null,null,"",null,{"$f":"SumCena(E244,'cenovnik-terapija'!B233:D266,3)","v":0},null,null,null,null,null,"","",""]
[null,0,null,null,"",null,{"$f":"SumCena(E245,'cenovnik-terapija'!B234:D267,3)","v":0},null,null,null,null,null,"","",""]
[null,0,null,null,"",null,{"$f":"SumCena(E246,'cenovnik-terapija'!B235:D268,3)","v":0},null,null,null,null,null,"","",""]
[null,0,null,null,"",null,{"$f":"SumCena(E247,'cenovnik-terapija'!B236:D269,3)","v":0},null,null,null,null,null,"","",""]
[null,0,null,null,"",null,{"$f":"SumCena(E248,'cenovnik-terapija'!B237:D270,3)","v":0},null,null,null,null,null,"","",""]
[null,0,null,null,"",null,{"$f":"SumCena(E249,'cenovnik-terapija'!B238:D271,3)","v":0},null,null,null,null,null,"","",""]
[null,0,null,null,"",null,{"$f":"SumCena(E250,'cenovnik-terapija'!B239:D272,3)","v":0},null,null,null,null,null,"","",""]
[null,0,null,null,"",null,{"$f":"SumCena(E251,'cenovnik-terapija'!B240:D273,3)","v":0},null,null,null,null,null,"","",""]
[null,0,null,null,"",null,{"$f":"SumCena(E252,'cenovnik-terapija'!B241:D274,3)","v":0},null,null,null,null,null,"","",""]
[null,0,null,null,"",null,{"$f":"SumCena(E253,'cenovnik-terapija'!B242:D275,3)","v":0},null,null,null,null,null,"","",""]
[null,0,null,null,"",null,{"$f":"SumCena(E254,'cenovnik-terapija'!B243:D276,3)","v":0},null,null,null,null,null,"","",""]
[null,0,null,null,"",null,{"$f":"SumCena(E255,'cenovnik-terapija'!B244:D277,3)","v":0},null,null,null,null,null,"","",""]
[null,0,null,null,"",null,{"$f":"SumCena(E256,'cenovnik-terapija'!B245:D278,3)","v":0},null,null,null,null,null,"","",""]
[null,0,null,null,"",null,{"$f":"SumCena(E257,'cenovnik-terapija'!B246:D279,3)","v":0},null,null,null,null,null,"","",""]
[null,0,null,null,"",null,{"$f":"SumCena(E258,'cenovnik-terapija'!B247:D280,3)","v":0},null,null,null,null,null,"","",""]
[null,0,null,null,"",null,{"$f":"SumCena(E259,'cenovnik-terapija'!B248:D281,3)","v":0},null,null,null,null,null,"","",""]
[null,0,null,null,"",null,{"$f":"SumCena(E260,'cenovnik-terapija'!B249:D282,3)","v":0},null,null,null,null,null,"","",""]
[null,0,null,null,"",null,{"$f":"SumCena(E261,'cenovnik-terapija'!B250:D283,3)","v":0},null,null,null,null,null,"","",""]
[null,0,null,null,"",null,{"$f":"SumCena(E262,'cenovnik-terapija'!B251:D284,3)","v":0},null,null,null,null,null,"","",""]
[null,0,null,null,"",null,{"$f":"SumCena(E263,'cenovnik-terapija'!B252:D285,3)","v":0},null,null,null,null,null,"","",""]
[null,0,null,null,"",null,{"$f":"SumCena(E264,'cenovnik-terapija'!B253:D286,3)","v":0},null,null,null,null,null,"","",""]
[null,0,null,null,"",null,{"$f":"SumCena(E265,'cenovnik-terapija'!B254:D287,3)","v":0},null,null,null,null,null,"","",""]
[null,0,null,null,"",null,{"$f":"SumCena(E266,'cenovnik-terapija'!B255:D288,3)","v":0},null,null,null,null,null,"","",""]
[null,0,null,null,"",null,{"$f":"SumCena(E267,'cenovnik-terapija'!B256:D289,3)","v":0},null,null,null,null,null,"","",""]
[null,0,null,null,"",null,{"$f":"SumCena(E268,'cenovnik-terapija'!B257:D290,3)","v":0},null,null,null,null,null,{"$f":"IFERROR(LEFT(E268,SEARCH(\",\",E268)-1),E268)","v":""},{"$f":"IFERROR(TRIM(IFERROR(MID(E268,SEARCH(\",\",E268)+1,SEARCH(\",\",E268,SEARCH(\",\",E268)+1)-SEARCH(\",\",E268)-1),\"\")),\"\")","v":""},{"$f":"IFERROR(TRIM(IF(LEN(E268)-LEN(SUBSTITUTE(E268,\",\",\"\"))=1,RIGHT(E268,LEN(E268)-SEARCH(\",\",E268)),RIGHT(E268,LEN(E268)-SEARCH(\",\",E268,SEARCH(\",\",E268)+1)))),\"\")","v":""}]
[null,0,null,null,"",null,{"$f":"SumCena(E269,'cenovnik-terapija'!B258:D291,3)","v":0},null,null,null,null,null,"","",""]
[null,0,null,null,"",null,{"$f":"SumCena(E270,'cenovnik-terapija'!B259:D292,3)","v":0},null,null,null,null,null,"","",""]
[null,0,null,null,"",null,{"$f":"SumCena(E271,'cenovnik-terapija'!B260:D293,3)","v":0},null,null,null,null,null,"","",""]
[null,0,null,null,"",null,{"$f":"SumCena(E272,'cenovnik-terapija'!B261:D294,3)","v":0},null,null,null,null,null,"","",""]
[null,0,null,null,"",null,{"$f":"SumCena(E273,'cenovnik-terapija'!B262:D295,3)","v":0},null,null,null,null,null,"","",""]
[null,0,null,null,"",null,{"$f":"SumCena(E274,'cenovnik-terapija'!B263:D296,3)","v":0},null,null,null,null,null,"","",""]
[null,0,null,null,"",null,{"$f":"SumCena(E275,'cenovnik-terapija'!B264:D297,3)","v":0},null,null,null,null,null,"","",""]
[null,0,null,null,"",null,{"$f":"SumCena(E276,'cenovnik-terapija'!B265:D298,3)","v":0},null,null,null,null,null,"","",""]
[null,0,null,null,"",null,{"$f":"SumCena(E277,'cenovnik-terapija'!B266:D299,3)","v":0},null,null,null,null,null,"","",""]
[null,0,null,null,"",null,{"$f":"SumCena(E278,'cenovnik-terapija'!B267:D300,3)","v":0},null,null,null,null,null,"","",""]
[null,0,null,null,"",null,{"$f":"SumCena(E279,'cenovnik-terapija'!B268:D301,3)","v":0},null,null,null,null,null,"","",""]
[null,0,null,null,"",null,{"$f":"SumCena(E280,'cenovnik-terapija'!B269:D302,3)","v":0},null,null,null,null,null,"","",""]
[null,0,null,null,"",null,{"$f":"SumCena(E281,'cenovnik-terapija'!B270:D303,3)","v":0},null,null,null,null,null,"","",""]
[null,0,null,null,"",null,{"$f":"SumCena(E282,'cenovnik-terapija'!B271:D304,3)","v":0},null,null,null,null,null,"","",""]
[null,0,null,null,"",null,{"$f":"SumCena(E283,'cenovnik-terapija'!B272:D305,3)","v":0},null,null,null,null,null,"","",""]
[null,0,null,null,"",null,{"$f":"SumCena(E284,'cenovnik-terapija'!B273:D306,3)","v":0},null,null,null,null,null,"","",""]
[null,0,null,null,"",null,{"$f":"SumCena(E285,'cenovnik-terapija'!B274:D307,3)","v":0},null,null,null,null,null,"","",""]
[null,0,null,null,"",null,{"$f":"SumCena(E286,'cenovnik-terapija'!B275:D308,3)","v":0},null,null,null,null,null,"","",""]
[null,0,null,null,"",null,{"$f":"SumCena(E287,'cenovnik-terapija'!B276:D309,3)","v":0},null,null,null,null,null,"","",""]
[null,0,null,null,"",null,{"$f":"SumCena(E288,'cenovnik-terapija'!B277:D310,3)","v":0},null,null,null,null,null,"","",""]
[null,0,null,null,"",null,{"$f":"SumCena(E289,'cenovnik-terapija'!B278:D311,3)","v":0},null,null,null,null,null,"","",""]
[null,0,null,null,"",null,{"$f":"SumCena(E290,'cenovnik-terapija'!B279:D312,3)","v":0},null,null,null,null,null,"","",""]
[null,0,null,null,"",null,{"$f":"SumCena(E291,'cenovnik-terapija'!B280:D313,3)","v":0},null,null,null,null,null,"","",""]
[null,0,null,null,"",null,{"$f":"SumCena(E292,'cenovnik-terapija'!B281:D314,3)","v":0},null,null,null,null,null,"","",""]
[null,0,null,null,"",null,{"$f":"SumCena(E293,'cenovnik-terapija'!B282:D315,3)","v":0},null,null,null,null,null,"","",""]
[null,0,null,null,"",null,{"$f":"SumCena(E294,'cenovnik-terapija'!B283:D316,3)","v":0},null,null,null,null,null,"","",""]
[null,0,null,null,"",null,{"$f":"SumCena(E295,'cenovnik-terapija'!B284:D317,3)","v":0},null,null,null,null,null,"","",""]
[null,0,null,null,"",null,{"$f":"SumCena(E296,'cenovnik-terapija'!B285:D318,3)","v":0},null,null,null,null,null,"","",""]
[null,0,null,null,"",null,{"$f":"SumCena(E297,'cenovnik-terapija'!B286:D319,3)","v":0},null,null,null,null,null,"","",""]
[null,0,null,null,"",null,{"$f":"SumCena(E298,'cenovnik-terapija'!B287:D320,3)","v":0},null,null,null,null,null,"","",""]
[null,0,null,null,"",null,{"$f":"SumCena(E299,'cenovnik-terapija'!B288:D321,3)","v":0},null,null,null,null,null,"","",""]
[null,0,null,null,"",null,{"$f":"SumCena(E300,'cenovnik-terapija'!B289:D322,3)","v":0},null,null,null,null,null,"","",""]
[null,0,null,null,"",null,{"$f":"SumCena(E301,'cenovnik-terapija'!B290:D323,3)","v":0},null,null,null,null,null,"","",""]
[null,0,null,null,"",null,{"$f":"SumCena(E302,'cenovnik-terapija'!B291:D324,3)","v":0},null,null,null,null,null,"","",""]
[null,0,null,null,"",null,{"$f":"SumCena(E303,'cenovnik-terapija'!B292:D325,3)","v":0},null,null,null,null,null,"","",""]
[null,0,null,null,"",null,{"$f":"SumCena(E304,'cenovnik-terapija'!B293:D326,3)","v":0},null,null,null,null,null,"","",""]
[null,0,null,null,"",null,{"$f":"SumCena(E305,'cenovnik-terapija'!B294:D327,3)","v":0},null,null,null,null,null,"","",""]
[null,0,null,null,"",null,{"$f":"SumCena(E306,'cenovnik-terapija'!B295:D328,3)","v":0},null,null,null,null,null,"","",""]
[null,0,null,null,"",null,{"$f":"SumCena(E307,'cenovnik-terapija'!B296:D329,3)","v":0},null,null,null,null,null,"","",""]
[null,0,null,null,"",null,{"$f":"SumCena(E308,'cenovnik-terapija'!B297:D330,3)","v":0},null,null,null,null,null,"","",""]
[null,0,null,null,"",null,{"$f":"SumCena(E309,'cenovnik-terapija'!B298:D331,3)","v":0},null,null,null,null,null,"","",""]
[null,0,null,null,"",null,{"$f":"SumCena(E310,'cenovnik-terapija'!B299:D332,3)","v":0},null,null,null,null,null,"","",""]
[null,0,null,null,"",null,{"$f":"SumCena(E311,'cenovnik-terapija'!B300:D333,3)","v":0},null,null,null,null,null,"","",""]
[null,0,null,null,"",null,{"$f":"SumCena(E312,'cenovnik-terapija'!B301:D334,3)","v":0},null,null,null,null,null,"","",""]
[null,0,null,null,"",null,{"$f":"SumCena(E313,'cenovnik-terapija'!B302:D335,3)","v":0},null,null,null,null,null,"","",""]
[null,0,null,null,"",null,{"$f":"SumCena(E314,'cenovnik-terapija'!B303:D336,3)","v":0},null,null,null,null,null,"","",""]
[null,0,null,null,"",null,{"$f":"SumCena(E315,'cenovnik-terapija'!B304:D337,3)","v":0},null,null,null,null,null,"","",""]
[null,0,null,null,"",null,{"$f":"SumCena(E316,'cenovnik-terapija'!B305:D338,3)","v":0},null,null,null,null,null,"","",""]
[null,0,null,null,"",null,{"$f":"SumCena(E317,'cenovnik-terapija'!B306:D339,3)","v":0},null,null,null,null,null,"","",""]
[null,0,null,null,"",null,{"$f":"SumCena(E318,'cenovnik-terapija'!B307:D340,3)","v":0},null,null,null,null,null,"","",""]
[null,0,null,null,"",null,{"$f":"SumCena(E319,'cenovnik-terapija'!B308:D341,3)","v":0},null,null,null,null,null,"","",""]
[null,0,null,null,"",null,{"$f":"SumCena(E320,'cenovnik-terapija'!B309:D342,3)","v":0},null,null,null,null,null,"","",""]
[null,0,null,null,"",null,{"$f":"SumCena(E321,'cenovnik-terapija'!B310:D343,3)","v":0},null,null,null,null,null,"","",""]
[null,0,null,null,"",null,{"$f":"SumCena(E322,'cenovnik-terapija'!B311:D344,3)","v":0},null,null,null,null,null,"","",""]
[null,0,null,null,"",null,{"$f":"SumCena(E323,'cenovnik-terapija'!B312:D345,3)","v":0},null,null,null,null,null,"","",""]
[null,0,null,null,"",null,{"$f":"SumCena(E324,'cenovnik-terapija'!B313:D346,3)","v":0},null,null,null,null,null,"","",""]
[null,0,null,null,"",null,{"$f":"SumCena(E325,'cenovnik-terapija'!B314:D347,3)","v":0},null,null,null,null,null,"","",""]
[null,0,null,null,"",null,{"$f":"SumCena(E326,'cenovnik-terapija'!B315:D348,3)","v":0},null,null,null,null,null,"","",""]
[null,0,null,null,"",null,{"$f":"SumCena(E327,'cenovnik-terapija'!B316:D349,3)","v":0},null,null,null,null,null,"","",""]
[null,0,null,null,"",null,{"$f":"SumCena(E328,'cenovnik-terapija'!B317:D350,3)","v":0},null,null,null,null,null,"","",""]
[null,0,null,null,"",null,{"$f":"SumCena(E329,'cenovnik-terapija'!B318:D351,3)","v":0},null,null,null,null,null,"","",""]
[null,0,null,null,"",null,{"$f":"SumCena(E330,'cenovnik-terapija'!B319:D352,3)","v":0},null,null,null,null,null,"","",""]
[null,0,null,null,"",null,{"$f":"SumCena(E331,'cenovnik-terapija'!B320:D353,3)","v":0},null,null,null,null,null,"","",""]
[null,0,null,null,"",null,{"$f":"SumCena(E332,'cenovnik-terapija'!B321:D354,3)","v":0},null,null,null,null,null,{"$f":"IFERROR(LEFT(E332,SEARCH(\",\",E332)-1),E332)","v":""},{"$f":"IFERROR(TRIM(IFERROR(MID(E332,SEARCH(\",\",E332)+1,SEARCH(\",\",E332,SEARCH(\",\",E332)+1)-SEARCH(\",\",E332)-1),\"\")),\"\")","v":""},{"$f":"IFERROR(TRIM(IF(LEN(E332)-LEN(SUBSTITUTE(E332,\",\",\"\"))=1,RIGHT(E332,LEN(E332)-SEARCH(\",\",E332)),RIGHT(E332,LEN(E332)-SEARCH(\",\",E332,SEARCH(\",\",E332)+1)))),\"\")","v":""}]
[null,0,null,null,"",null,{"$f":"SumCena(E333,'cenovnik-terapija'!B322:D355,3)","v":0},null,null,null,null,null,"","",""]
[null,0,null,null,"",null,{"$f":"SumCena(E334,'cenovnik-terapija'!B323:D356,3)","v":0},null,null,null,null,null,"","",""]
[null,0,null,null,"",null,{"$f":"SumCena(E335,'cenovnik-terapija'!B324:D357,3)","v":0},null,null,null,null,null,"","",""]
[null,0,null,null,"",null,{"$f":"SumCena(E336,'cenovnik-terapija'!B325:D358,3)","v":0},null,null,null,null,null,"","",""]
[null,0,null,null,"",null,{"$f":"SumCena(E337,'cenovnik-terapija'!B326:D359,3)","v":0},null,null,null,null,null,"","",""]
[null,0,null,null,"",null,{"$f":"SumCena(E338,'cenovnik-terapija'!B327:D360,3)","v":0},null,null,null,null,null,"","",""]
[null,0,null,null,"",null,{"$f":"SumCena(E339,'cenovnik-terapija'!B328:D361,3)","v":0},null,null,null,null,null,"","",""]
[null,0,null,null,"",null,{"$f":"SumCena(E340,'cenovnik-terapija'!B329:D362,3)","v":0},null,null,null,null,null,"","",""]
[null,0,null,null,"",null,{"$f":"SumCena(E341,'cenovnik-terapija'!B330:D363,3)","v":0},null,null,null,null,null,"","",""]
[null,0,null,null,"",null,{"$f":"SumCena(E342,'cenovnik-terapija'!B331:D364,3)","v":0},null,null,null,null,null,"","",""]
[null,0,null,null,"",null,{"$f":"SumCena(E343,'cenovnik-terapija'!B332:D365,3)","v":0},null,null,null,null,null,"","",""]
[null,0,null,null,"",null,{"$f":"SumCena(E344,'cenovnik-terapija'!B333:D366,3)","v":0},null,null,null,null,null,"","",""]
[null,0,null,null,"",null,{"$f":"SumCena(E345,'cenovnik-terapija'!B334:D367,3)","v":0},null,null,null,null,null,"","",""]
[null,0,null,null,"",null,{"$f":"SumCena(E346,'cenovnik-terapija'!B335:D368,3)","v":0},null,null,null,null,null,"","",""]
[null,0,null,null,"",null,{"$f":"SumCena(E347,'cenovnik-terapija'!B336:D369,3)","v":0},null,null,null,null,null,"","",""]
[null,0,null,null,"",null,{"$f":"SumCena(E348,'cenovnik-terapija'!B337:D370,3)","v":0},null,null,null,null,null,"","",""]
[null,0,null,null,"",null,{"$f":"SumCena(E349,'cenovnik-terapija'!B338:D371,3)","v":0},null,null,null,null,null,"","",""]
[null,0,null,null,"",null,{"$f":"SumCena(E350,'cenovnik-terapija'!B339:D372,3)","v":0},null,null,null,null,null,"","",""]
[null,0,null,null,"",null,{"$f":"SumCena(E351,'cenovnik-terapija'!B340:D373,3)","v":0},null,null,null,null,null,"","",""]
[null,0,null,null,"",null,{"$f":"SumCena(E352,'cenovnik-terapija'!B341:D374,3)","v":0},null,null,null,null,null,"","",""]
[null,0,null,null,"",null,{"$f":"SumCena(E353,'cenovnik-terapija'!B342:D375,3)","v":0},null,null,null,null,null,"","",""]
[null,0,null,null,"",null,{"$f":"SumCena(E354,'cenovnik-terapija'!B343:D376,3)","v":0},null,null,null,null,null,"","",""]
[null,0,null,null,"",null,{"$f":"SumCena(E355,'cenovnik-terapija'!B344:D377,3)","v":0},null,null,null,null,null,"","",""]
[null,0,null,null,"",null,{"$f":"SumCena(E356,'cenovnik-terapija'!B345:D378,3)","v":0},null,null,null,null,null,"","",""]
[null,0,null,null,"",null,{"$f":"SumCena(E357,'cenovnik-terapija'!B346:D379,3)","v":0},null,null,null,null,null,"","",""]
[null,0,null,null,"",null,{"$f":"SumCena(E358,'cenovnik-terapija'!B347:D380,3)","v":0},null,null,null,null,null,"","",""]
[null,0,null,null,"",null,{"$f":"SumCena(E359,'cenovnik-terapija'!B348:D381,3)","v":0},null,null,null,null,null,"","",""]
[null,0,null,null,"",null,{"$f":"SumCena(E360,'cenovnik-terapija'!B349:D382,3)","v":0},null,null,null,null,null,"","",""]
[null,0,null,null,"",null,{"$f":"SumCena(E361,'cenovnik-terapija'!B350:D383,3)","v":0},null,null,null,null,null,"","",""]
[null,0,null,null,"",null,{"$f":"SumCena(E362,'cenovnik-terapija'!B351:D384,3)","v":0},null,null,null,null,null,"","",""]
[null,0,null,null,"",null,{"$f":"SumCena(E363,'cenovnik-terapija'!B352:D385,3)","v":0},null,null,null,null,null,"","",""]
[null,0,null,null,"",null,{"$f":"SumCena(E364,'cenovnik-terapija'!B353:D386,3)","v":0},null,null,null,null,null,"","",""]
[null,0,null,null,"",null,{"$f":"SumCena(E365,'cenovnik-terapija'!B354:D387,3)","v":0},null,null,null,null,null,"","",""]
[null,0,null,null,"",null,{"$f":"SumCena(E366,'cenovnik-terapija'!B355:D388,3)","v":0},null,null,null,null,null,"","",""]
[null,0,null,null,"",null,{"$f":"SumCena(E367,'cenovnik-terapija'!B356:D389,3)","v":0},null,null,null,null,null,"","",""]
[null,0,null,null,"",null,{"$f":"SumCena(E368,'cenovnik-terapija'!B357:D390,3)","v":0},null,null,null,null,null,"","",""]
[null,0,null,null,"",null,{"$f":"SumCena(E369,'cenovnik-terapija'!B358:D391,3)","v":0},null,null,null,null,null,"","",""]
[null,0,null,null,"",null,{"$f":"SumCena(E370,'cenovnik-terapija'!B359:D392,3)","v":0},null,null,null,null,null,"","",""]
[null,0,null,null,"",null,{"$f":"SumCena(E371,'cenovnik-terapija'!B360:D393,3)","v":0},null,null,null,null,null,"","",""]
[null,0,null,null,"",null,{"$f":"SumCena(E372,'cenovnik-terapija'!B361:D394,3)","v":0},null,null,null,null,null,"","",""]
[null,0,null,null,"",null,{"$f":"SumCena(E373,'cenovnik-terapija'!B362:D395,3)","v":0},null,null,null,null,null,"","",""]
[null,0,null,null,"",null,{"$f":"SumCena(E374,'cenovnik-terapija'!B363:D396,3)","v":0},null,null,null,null,null,"","",""]
[null,0,null,null,"",null,{"$f":"SumCena(E375,'cenovnik-terapija'!B364:D397,3)","v":0},null,null,null,null,null,"","",""]
[null,0,null,null,"",null,{"$f":"SumCena(E376,'cenovnik-terapija'!B365:D398,3)","v":0},null,null,null,null,null,"","",""]
[null,0,null,null,"",null,{"$f":"SumCena(E377,'cenovnik-terapija'!B366:D399,3)","v":0},null,null,null,null,null,"","",""]
[null,0,null,null,"",null,{"$f":"SumCena(E378,'cenovnik-terapija'!B367:D400,3)","v":0},null,null,null,null,null,"","",""]
[null,0,null,null,"",null,{"$f":"SumCena(E379,'cenovnik-terapija'!B368:D401,3)","v":0},null,null,null,null,null,"","",""]
[null,0,null,null,"",null,{"$f":"SumCena(E380,'cenovnik-terapija'!B369:D402,3)","v":0},null,null,null,null,null,"","",""]
[null,0,null,null,"",null,{"$f":"SumCena(E381,'cenovnik-terapija'!B370:D403,3)","v":0},null,null,null,null,null,"","",""]
[null,0,null,null,"",null,{"$f":"SumCena(E382,'cenovnik-terapija'!B371:D404,3)","v":0},null,null,null,null,null,"","",""]
[null,0,null,null,"",null,{"$f":"SumCena(E383,'cenovnik-terapija'!B372:D405,3)","v":0},null,null,null,null,null,"","",""]
[null,0,null,null,"",null,{"$f":"SumCena(E384,'cenovnik-terapija'!B373:D406,3)","v":0},null,null,null,null,null,"","",""]
[null,0,null,null,"",null,{"$f":"SumCena(E385,'cenovnik-terapija'!B374:D407,3)","v":0},null,null,null,null,null,"","",""]
[null,0,null,null,"",null,{"$f":"SumCena(E386,'cenovnik-terapija'!B375:D408,3)","v":0},null,null,null,null,null,"","",""]
[null,0,null,null,"",null,{"$f":"SumCena(E387,'cenovnik-terapija'!B376:D409,3)","v":0},null,null,null,null,null,"","",""]
[null,0,null,null,"",null,{"$f":"SumCena(E388,'cenovnik-terapija'!B377:D410,3)","v":0},null,null,null,null,null,"","",""]
[null,0,null,null,"",null,{"$f":"SumCena(E389,'cenovnik-terapija'!B378:D411,3)","v":0},null,null,null,null,null,"","",""]
[null,0,null,null,"",null,{"$f":"SumCena(E390,'cenovnik-terapija'!B379:D412,3)","v":0},null,null,null,null,null,"","",""]
[null,0,null,null,"",null,{"$f":"SumCena(E391,'cenovnik-terapija'!B380:D413,3)","v":0},null,null,null,null,null,"","",""]
[null,0,null,null,"",null,{"$f":"SumCena(E392,'cenovnik-terapija'!B381:D414,3)","v":0},null,null,null,null,null,"","",""]
[null,0,null,null,"",null,{"$f":"SumCena(E393,'cenovnik-terapija'!B382:D415,3)","v":0},null,null,null,null,null,"","",""]
[null,0,null,null,"",null,{"$f":"SumCena(E394,'cenovnik-terapija'!B383:D416,3)","v":0},null,null,null,null,null,"","",""]
[null,0,null,null,"",null,{"$f":"SumCena(E395,'cenovnik-terapija'!B384:D417,3)","v":0},null,null,null,null,null,"","",""]
[null,0,null,null,"",null,{"$f":"SumCena(E396,'cenovnik-terapija'!B385:D418,3)","v":0},null,null,null,null,null,{"$f":"IFERROR(LEFT(E396,SEARCH(\",\",E396)-1),E396)","v":""},{"$f":"IFERROR(TRIM(IFERROR(MID(E396,SEARCH(\",\",E396)+1,SEARCH(\",\",E396,SEARCH(\",\",E396)+1)-SEARCH(\",\",E396)-1),\"\")),\"\")","v":""},{"$f":"IFERROR(TRIM(IF(LEN(E396)-LEN(SUBSTITUTE(E396,\",\",\"\"))=1,RIGHT(E396,LEN(E396)-SEARCH(\",\",E396)),RIGHT(E396,LEN(E396)-SEARCH(\",\",E396,SEARCH(\",\",E396)+1)))),\"\")","v":""}]
[null,0,null,null,"",null,{"$f":"SumCena(E397,'cenovnik-terapija'!B386:D419,3)","v":0},null,null,null,null,null,"","",""]
[null,0,null,null,"",null,{"$f":"SumCena(E398,'cenovnik-terapija'!B387:D420,3)","v":0},null,null,null,null,null,"","",""]
[null,0,null,null,"",null,{"$f":"SumCena(E399,'cenovnik-terapija'!B388:D421,3)","v":0},null,null,null,null,null,"","",""]
[null,0,null,null,"",null,{"$f":"SumCena(E400,'cenovnik-terapija'!B389:D422,3)","v":0},null,null,null,null,null,"","",""]
[null,0,null,null,"",null,{"$f":"SumCena(E401,'cenovnik-terapija'!B390:D423,3)","v":0},null,null,null,null,null,"","",""]
[null,0,null,null,"",null,{"$f":"SumCena(E402,'cenovnik-terapija'!B391:D424,3)","v":0},null,null,null,null,null,"","",""]
[null,0,null,null,"",null,{"$f":"SumCena(E403,'cenovnik-terapija'!B392:D425,3)","v":0},null,null,null,null,null,"","",""]
[null,0,null,null,"",null,{"$f":"SumCena(E404,'cenovnik-terapija'!B393:D426,3)","v":0},null,null,null,null,null,"","",""]
[null,0,null,null,"",null,{"$f":"SumCena(E405,'cenovnik-terapija'!B394:D427,3)","v":0},null,null,null,null,null,"","",""]
[null,0,null,null,"",null,{"$f":"SumCena(E406,'cenovnik-terapija'!B395:D428,3)","v":0},null,null,null,null,null,"","",""]
[null,0,null,null,"",null,{"$f":"SumCena(E407,'cenovnik-terapija'!B396:D429,3)","v":0},null,null,null,null,null,"","",""]
[null,0,null,null,"",null,{"$f":"SumCena(E408,'cenovnik-terapija'!B397:D430,3)","v":0},null,null,null,null,null,"","",""]
[null,0,null,null,"",null,{"$f":"SumCena(E409,'cenovnik-terapija'!B398:D431,3)","v":0},null,null,null,null,null,"","",""]
[null,0,null,null,"",null,{"$f":"SumCena(E410,'cenovnik-terapija'!B399:D432,3)","v":0},null,null,null,null,null,"","",""]
[null,0,null,null,"",null,{"$f":"SumCena(E411,'cenovnik-terapija'!B400:D433,3)","v":0},null,null,null,null,null,"","",""]
[null,0,null,null,"",null,{"$f":"SumCena(E412,'cenovnik-terapija'!B401:D434,3)","v":0},null,null,null,null,null,"","",""]
[null,0,null,null,"",null,{"$f":"SumCena(E413,'cenovnik-terapija'!B402:D435,3)","v":0},null,null,null,null,null,"","",""]
[null,0,null,null,"",null,{"$f":"SumCena(E414,'cenovnik-terapija'!B403:D436,3)","v":0},null,null,null,null,null,"","",""]
[null,0,null,null,"",null,{"$f":"SumCena(E415,'cenovnik-terapija'!B404:D437,3)","v":0},null,null,null,null,null,"","",""]
[null,0,null,null,"",null,{"$f":"SumCena(E416,'cenovnik-terapija'!B405:D438,3)","v":0},null,null,null,null,null,"","",""]
[null,0,null,null,"",null,{"$f":"SumCena(E417,'cenovnik-terapija'!B406:D439,3)","v":0},null,null,null,null,null,"","",""]
[null,0,null,null,"",null,{"$f":"SumCena(E418,'cenovnik-terapija'!B407:D440,3)","v":0},null,null,null,null,null,"","",""]
[null,0,null,null,"",null,{"$f":"SumCena(E419,'cenovnik-terapija'!B408:D441,3)","v":0},null,null,null,null,null,"","",""]
[null,0,null,null,"",null,{"$f":"SumCena(E420,'cenovnik-terapija'!B409:D442,3)","v":0},null,null,null,null,null,"","",""]
[null,0,null,null,"",null,{"$f":"SumCena(E421,'cenovnik-terapija'!B410:D443,3)","v":0},null,null,null,null,null,"","",""]
[null,0,null,null,"",null,{"$f":"SumCena(E422,'cenovnik-terapija'!B411:D444,3)","v":0},null,null,null,null,null,"","",""]
[null,0,null,null,"",null,{"$f":"SumCena(E423,'cenovnik-terapija'!B412:D445,3)","v":0},null,null,null,null,null,"","",""]
[null,0,null,null,"",null,{"$f":"SumCena(E424,'cenovnik-terapija'!B413:D446,3)","v":0},null,null,null,null,null,"","",""]
[null,0,null,null,"",null,{"$f":"SumCena(E425,'cenovnik-terapija'!B414:D447,3)","v":0},null,null,null,null,null,"","",""]
[null,0,null,null,"",null,{"$f":"SumCena(E426,'cenovnik-terapija'!B415:D448,3)","v":0},null,null,null,null,null,"","",""]
[null,0,null,null,"",null,{"$f":"SumCena(E427,'cenovnik-terapija'!B416:D449,3)","v":0},null,null,null,null,null,"","",""]
[null,0,null,null,"",null,{"$f":"SumCena(E428,'cenovnik-terapija'!B417:D450,3)","v":0},null,null,null,null,null,"","",""]
[null,0,null,null,"",null,{"$f":"SumCena(E429,'cenovnik-terapija'!B418:D451,3)","v":0},null,null,null,null,null,"","",""]
[null,0,null,null,"",null,{"$f":"SumCena(E430,'cenovnik-terapija'!B419:D452,3)","v":0},null,null,null,null,null,"","",""]
[null,0,null,null,"",null,{"$f":"SumCena(E431,'cenovnik-terapija'!B420:D453,3)","v":0},null,null,null,null,null,"","",""]
[null,0,null,null,"",null,{"$f":"SumCena(E432,'cenovnik-terapija'!B421:D454,3)","v":0},null,null,null,null,null,"","",""]
[null,0,null,null,"",null,{"$f":"SumCena(E433,'cenovnik-terapija'!B422:D455,3)","v":0},null,null,null,null,null,"","",""]
[null,0,null,null,"",null,{"$f":"SumCena(E434,'cenovnik-terapija'!B423:D456,3)","v":0},null,null,null,null,null,"","",""]
[null,0,null,null,"",null,{"$f":"SumCena(E435,'cenovnik-terapija'!B424:D457,3)","v":0},null,null,null,null,null,"","",""]
[null,0,null,null,"",null,{"$f":"SumCena(E436,'cenovnik-terapija'!B425:D458,3)","v":0},null,null,null,null,null,"","",""]
[null,0,null,null,"",null,{"$f":"SumCena(E437,'cenovnik-terapija'!B426:D459,3)","v":0},null,null,null,null,null,"","",""]
[null,0,null,null,"",null,{"$f":"SumCena(E438,'cenovnik-terapija'!B427:D460,3)","v":0},null,null,null,null,null,"","",""]
[null,0,null,null,"",null,{"$f":"SumCena(E439,'cenovnik-terapija'!B428:D461,3)","v":0},null,null,null,null,null,"","",""]
[null,0,null,null,"",null,{"$f":"SumCena(E440,'cenovnik-terapija'!B429:D462,3)","v":0},null,null,null,null,null,"","",""]
[null,0,null,null,"",null,{"$f":"SumCena(E441,'cenovnik-terapija'!B430:D463,3)","v":0},null,null,null,null,null,"","",""]
[null,0,null,null,"",null,{"$f":"SumCena(E442,'cenovnik-terapija'!B431:D464,3)","v":0},null,null,null,null,null,"","",""]
[null,0,null,null,"",null,{"$f":"SumCena(E443,'cenovnik-terapija'!B432:D465,3)","v":0},null,null,null,null,null,"","",""]
[null,0,null,null,"",null,{"$f":"SumCena(E444,'cenovnik-terapija'!B433:D466,3)","v":0},null,null,null,null,null,"","",""]
[null,0,null,null,"",null,{"$f":"SumCena(E445,'cenovnik-terapija'!B434:D467,3)","v":0},null,null,null,null,null,"","",""]
[null,0,null,null,"",null,{"$f":"SumCena(E446,'cenovnik-terapija'!B435:D468,3)","v":0},null,null,null,null,null,"","",""]
[null,0,null,null,"",null,{"$f":"SumCena(E447,'cenovnik-terapija'!B436:D469,3)","v":0},null,null,null,null,null,"","",""]
[null,0,null,null,"",null,{"$f":"SumCena(E448,'cenovnik-terapija'!B437:D470,3)","v":0},null,null,null,null,null,"","",""]
[null,0,null,null,"",null,{"$f":"SumCena(E449,'cenovnik-terapija'!B438:D471,3)","v":0},null,null,null,null,null,"","",""]
[null,0,null,null,"",null,{"$f":"SumCena(E450,'cenovnik-terapija'!B439:D472,3)","v":0},null,null,null,null,null,"","",""]
[null,0,null,null,"",null,{"$f":"SumCena(E451,'cenovnik-terapija'!B440:D473,3)","v":0},null,null,null,null,null,"","",""]
[null,0,null,null,"",null,{"$f":"SumCena(E452,'cenovnik-terapija'!B441:D474,3)","v":0},null,null,null,null,null,"","",""]
[null,0,null,null,"",null,{"$f":"SumCena(E453,'cenovnik-terapija'!B442:D475,3)","v":0},null,null,null,null,null,"","",""]
[null,0,null,null,"",null,{"$f":"SumCena(E454,'cenovnik-terapija'!B443:D476,3)","v":0},null,null,null,null,null,"","",""]
[null,0,null,null,"",null,{"$f":"SumCena(E455,'cenovnik-terapija'!B444:D477,3)","v":0},null,null,null,null,null,"","",""]
[null,0,null,null,"",null,{"$f":"SumCena(E456,'cenovnik-terapija'!B445:D478,3)","v":0},null,null,null,null,null,"","",""]
[null,0,null,null,"",null,{"$f":"SumCena(E457,'cenovnik-terapija'!B446:D479,3)","v":0},null,null,null,null,null,"","",""]
[null,0,null,null,"",null,{"$f":"SumCena(E458,'cenovnik-terapija'!B447:D480,3)","v":0},null,null,null,null,null,"","",""]
[null,0,null,null,"",null,{"$f":"SumCena(E459,'cenovnik-terapija'!B448:D481,3)","v":0},null,null,null,null,null,"","",""]
[null,0,null,null,"",null,{"$f":"SumCena(E460,'cenovnik-terapija'!B449:D482,3)","v":0},null,null,null,null,null,{"$f":"IFERROR(LEFT(E460,SEARCH(\",\",E460)-1),E460)","v":""},{"$f":"IFERROR(TRIM(IFERROR(MID(E460,SEARCH(\",\",E460)+1,SEARCH(\",\",E460,SEARCH(\",\",E460)+1)-SEARCH(\",\",E460)-1),\"\")),\"\")","v":""},{"$f":"IFERROR(TRIM(IF(LEN(E460)-LEN(SUBSTITUTE(E460,\",\",\"\"))=1,RIGHT(E460,LEN(E460)-SEARCH(\",\",E460)),RIGHT(E460,LEN(E460)-SEARCH(\",\",E460,SEARCH(\",\",E460)+1)))),\"\")","v":""}]
[null,0,null,null,"",null,{"$f":"SumCena(E461,'cenovnik-terapija'!B450:D483,3)","v":0},null,null,null,null,null,"","",""]
[null,0,null,null,"",null,{"$f":"SumCena(E462,'cenovnik-terapija'!B451:D484,3)","v":0},null,null,null,null,null,"","",""]
[null,0,null,null,"",null,{"$f":"SumCena(E463,'cenovnik-terapija'!B452:D485,3)","v":0},null,null,null,null,null,"","",""]
[null,0,null,null,"",null,{"$f":"SumCena(E464,'cenovnik-terapija'!B453:D486,3)","v":0},null,null,null,null,null,"","",""]
[null,0,null,null,"",null,{"$f":"SumCena(E465,'cenovnik-terapija'!B454:D487,3)","v":0},null,null,null,null,null,"","",""]
[null,0,null,null,"",null,{"$f":"SumCena(E466,'cenovnik-terapija'!B455:D488,3)","v":0},null,null,null,null,null,"","",""]
[null,0,null,null,"",null,{"$f":"SumCena(E467,'cenovnik-terapija'!B456:D489,3)","v":0},null,null,null,null,null,"","",""]
[null,0,null,null,"",null,{"$f":"SumCena(E468,'cenovnik-terapija'!B457:D490,3)","v":0},null,null,null,null,null,"","",""]
[null,0,null,null,"",null,{"$f":"SumCena(E469,'cenovnik-terapija'!B458:D491,3)","v":0},null,null,null,null,null,"","",""]
[null,0,null,null,"",null,{"$f":"SumCena(E470,'cenovnik-terapija'!B459:D492,3)","v":0},null,null,null,null,null,"","",""]
[null,0,null,null,"",null,{"$f":"SumCena(E471,'cenovnik-terapija'!B460:D493,3)","v":0},null,null,null,null,null,"","",""]
[null,0,null,null,"",null,{"$f":"SumCena(E472,'cenovnik-terapija'!B461:D494,3)","v":0},null,null,null,null,null,"","",""]
[null,0,null,null,"",null,{"$f":"SumCena(E473,'cenovnik-terapija'!B462:D495,3)","v":0},null,null,null,null,null,"","",""]
[null,0,null,null,"",null,{"$f":"SumCena(E474,'cenovnik-terapija'!B463:D496,3)","v":0},null,null,null,null,null,"","",""]
[null,0,null,null,"",null,{"$f":"SumCena(E475,'cenovnik-terapija'!B464:D497,3)","v":0},null,null,null,null,null,"","",""]
[null,0,null,null,"",null,{"$f":"SumCena(E476,'cenovnik-terapija'!B465:D498,3)","v":0},null,null,null,null,null,"","",""]
[null,0,null,null,"",null,{"$f":"SumCena(E477,'cenovnik-terapija'!B466:D499,3)","v":0},null,null,null,null,null,"","",""]
[null,0,null,null,"",null,{"$f":"SumCena(E478,'cenovnik-terapija'!B467:D500,3)","v":0},null,null,null,null,null,"","",""]
[null,0,null,null,"",null,{"$f":"SumCena(E479,'cenovnik-terapija'!B468:D501,3)","v":0},null,null,null,null,null,"","",""]
[null,0,null,null,"",null,{"$f":"SumCena(E480,'cenovnik-terapija'!B469:D502,3)","v":0},null,null,null,null,null,"","",""]
[null,0,null,null,"",null,{"$f":"SumCena(E481,'cenovnik-terapija'!B470:D503,3)","v":0},null,null,null,null,null,"","",""]
[null,0,null,null,"",null,{"$f":"SumCena(E482,'cenovnik-terapija'!B471:D504,3)","v":0},null,null,null,null,null,"","",""]
[null,0,null,null,"",null,{"$f":"SumCena(E483,'cenovnik-terapija'!B472:D505,3)","v":0},null,null,null,null,null,"","",""]
[null,0,null,null,"",null,{"$f":"SumCena(E484,'cenovnik-terapija'!B473:D506,3)","v":0},null,null,null,null,null,"","",""]
[null,0,null,null,"",null,{"$f":"SumCena(E485,'cenovnik-terapija'!B474:D507,3)","v":0},null,null,null,null,null,"","",""]
[null,0,null,null,"",null,{"$f":"SumCena(E486,'cenovnik-terapija'!B475:D508,3)","v":0},null,null,null,null,null,"","",""]
[null,0,null,null,"",null,{"$f":"SumCena(E487,'cenovnik-terapija'!B476:D509,3)","v":0},null,null,null,null,null,"","",""]
[null,0,null,null,"",null,{"$f":"SumCena(E488,'cenovnik-terapija'!B477:D510,3)","v":0},null,null,null,null,null,"","",""]
[null,0,null,null,"",null,{"$f":"SumCena(E489,'cenovnik-terapija'!B478:D511,3)","v":0},null,null,null,null,null,"","",""]
[null,0,null,null,"",null,{"$f":"SumCena(E490,'cenovnik-terapija'!B479:D512,3)","v":0},null,null,null,null,null,"","",""]
[null,0,null,null,"",null,{"$f":"SumCena(E491,'cenovnik-terapija'!B480:D513,3)","v":0},null,null,null,null,null,"","",""]
[null,0,null,null,"",null,{"$f":"SumCena(E492,'cenovnik-terapija'!B481:D514,3)","v":0},null,null,null,null,null,"","",""]
[null,0,null,null,"",null,{"$f":"SumCena(E493,'cenovnik-terapija'!B482:D515,3)","v":0},null,null,null,null,null,"","",""]
[null,0,null,null,"",null,{"$f":"SumCena(E494,'cenovnik-terapija'!B483:D516,3)","v":0},null,null,null,null,null,"","",""]
[null,0,null,null,"",null,{"$f":"SumCena(E495,'cenovnik-terapija'!B484:D517,3)","v":0},null,null,null,null,null,"","",""]
[null,0,null,null,"",null,{"$f":"SumCena(E496,'cenovnik-terapija'!B485:D518,3)","v":0},null,null,null,null,null,"","",""]
[null,0,null,null,"",null,{"$f":"SumCena(E497,'cenovnik-terapija'!B486:D519,3)","v":0},null,null,null,null,null,"","",""]
[null,0,null,null,"",null,{"$f":"SumCena(E498,'cenovnik-terapija'!B487:D520,3)","v":0},null,null,null,null,null,"","",""]
[null,0,null,null,"",null,{"$f":"SumCena(E499,'cenovnik-terapija'!B488:D521,3)","v":0},null,null,null,null,null,"","",""]
[null,0,null,null,"",null,{"$f":"SumCena(E500,'cenovnik-terapija'!B489:D522,3)","v":0},null,null,null,null,null,"","",""]
[null,0,null,null,"",null,{"$f":"SumCena(E501,'cenovnik-terapija'!B490:D523,3)","v":0},null,null,null,null,null,"","",""]
[null,0,null,null,"",null,{"$f":"SumCena(E502,'cenovnik-terapija'!B491:D524,3)","v":0},null,null,null,null,null,"","",""]
[null,0,null,null,"",null,{"$f":"SumCena(E503,'cenovnik-terapija'!B492:D525,3)","v":0},null,null,null,null,null,"","",""]
[null,0,null,null,"",null,{"$f":"SumCena(E504,'cenovnik-terapija'!B493:D526,3)","v":0},null,null,null,null,null,"","",""]
[null,0,null,null,"",null,{"$f":"SumCena(E505,'cenovnik-terapija'!B494:D527,3)","v":0},null,null,null,null,null,"","",""]
[null,0,null,null,"",null,{"$f":"SumCena(E506,'cenovnik-terapija'!B495:D528,3)","v":0},null,null,null,null,null,"","",""]
[null,0,null,null,"",null,{"$f":"SumCena(E507,'cenovnik-terapija'!B496:D529,3)","v":0},null,null,null,null,null,"","",""]
[null,0,null,null,"",null,{"$f":"SumCena(E508,'cenovnik-terapija'!B497:D530,3)","v":0},null,null,null,null,null,"","",""]
[null,0,null,null,"",null,{"$f":"SumCena(E509,'cenovnik-terapija'!B498:D531,3)","v":0},null,null,null,null,null,"","",""]
[null,0,null,null,"",null,{"$f":"SumCena(E510,'cenovnik-terapija'!B499:D532,3)","v":0},null,null,null,null,null,"","",""]
[null,0,null,null,"",null,{"$f":"SumCena(E511,'cenovnik-terapija'!B500:D533,3)","v":0},null,null,null,null,null,"","",""]
[null,0,null,null,"",null,{"$f":"SumCena(E512,'cenovnik-terapija'!B501:D534,3)","v":0},null,null,null,null,null,"","",""]
[null,0,null,null,"",null,{"$f":"SumCena(E513,'cenovnik-terapija'!B502:D535,3)","v":0},null,null,null,null,null,"","",""]
[null,0,null,null,"",null,{"$f":"SumCena(E514,'cenovnik-terapija'!B503:D536,3)","v":0},null,null,null,null,null,"","",""]
[null,0,null,null,"",null,{"$f":"SumCena(E515,'cenovnik-terapija'!B504:D537,3)","v":0},null,null,null,null,null,"","",""]
[null,0,null,null,"",null,{"$f":"SumCena(E516,'cenovnik-terapija'!B505:D538,3)","v":0},null,null,null,null,null,"","",""]
[null,0,null,null,"",null,{"$f":"SumCena(E517,'cenovnik-terapija'!B506:D539,3)","v":0},null,null,null,null,null,"","",""]
[null,0,null,null,"",null,{"$f":"SumCena(E518,'cenovnik-terapija'!B507:D540,3)","v":0},null,null,null,null,null,"","",""]
[null,0,null,null,"",null,{"$f":"SumCena(E519,'cenovnik-terapija'!B508:D541,3)","v":0},null,null,null,null,null,"","",""]
[null,0,null,null,"",null,{"$f":"SumCena(E520,'cenovnik-terapija'!B509:D542,3)","v":0},null,null,null,null,null,"","",""]
[null,0,null,null,"",null,{"$f":"SumCena(E521,'cenovnik-terapija'!B510:D543,3)","v":0},null,null,null,null,null,"","",""]
[null,0,null,null,"",null,{"$f":"SumCena(E522,'cenovnik-terapija'!B511:D544,3)","v":0},null,null,null,null,null,"","",""]
[null,0,null,null,"",null,{"$f":"SumCena(E523,'cenovnik-terapija'!B512:D545,3)","v":0},null,null,null,null,null,"","",""]
[null,0,null,null,"",null,{"$f":"SumCena(E524,'cenovnik-terapija'!B513:D546,3)","v":0},null,null,null,null,null,{"$f":"IFERROR(LEFT(E524,SEARCH(\",\",E524)-1),E524)","v":""},{"$f":"IFERROR(TRIM(IFERROR(MID(E524,SEARCH(\",\",E524)+1,SEARCH(\",\",E524,SEARCH(\",\",E524)+1)-SEARCH(\",\",E524)-1),\"\")),\"\")","v":""},{"$f":"IFERROR(TRIM(IF(LEN(E524)-LEN(SUBSTITUTE(E524,\",\",\"\"))=1,RIGHT(E524,LEN(E524)-SEARCH(\",\",E524)),RIGHT(E524,LEN(E524)-SEARCH(\",\",E524,SEARCH(\",\",E524)+1)))),\"\")","v":""}]
[null,0,null,null,"",null,{"$f":"SumCena(E525,'cenovnik-terapija'!B514:D547,3)","v":0},null,null,null,null,null,"","",""]
[null,0,null,null,"",null,{"$f":"SumCena(E526,'cenovnik-terapija'!B515:D548,3)","v":0},null,null,null,null,null,"","",""]
[null,0,null,null,"",null,{"$f":"SumCena(E527,'cenovnik-terapija'!B516:D549,3)","v":0},null,null,null,null,null,"","",""]
[null,0,null,null,"",null,{"$f":"SumCena(E528,'cenovnik-terapija'!B517:D550,3)","v":0},null,null,null,null,null,"","",""]
[null,0,null,null,"",null,{"$f":"SumCena(E529,'cenovnik-terapija'!B518:D551,3)","v":0},null,null,null,null,null,"","",""]
[null,0,null,null,"",null,{"$f":"SumCena(E530,'cenovnik-terapija'!B519:D552,3)","v":0},null,null,null,null,null,"","",""]
[null,0,null,null,"",null,{"$f":"SumCena(E531,'cenovnik-terapija'!B520:D553,3)","v":0},null,null,null,null,null,"","",""]
[null,0,null,null,"",null,{"$f":"SumCena(E532,'cenovnik-terapija'!B521:D554,3)","v":0},null,null,null,null,null,"","",""]
[null,0,null,null,"",null,{"$f":"SumCena(E533,'cenovnik-terapija'!B522:D555,3)","v":0},null,null,null,null,null,"","",""]
[null,0,null,null,"",null,{"$f":"SumCena(E534,'cenovnik-terapija'!B523:D556,3)","v":0},null,null,null,null,null,"","",""]
[null,0,null,null,"",null,{"$f":"SumCena(E535,'cenovnik-terapija'!B524:D557,3)","v":0},null,null,null,null,null,"","",""]
[null,0,null,null,"",null,{"$f":"SumCena(E536,'cenovnik-terapija'!B525:D558,3)","v":0},null,null,null,null,null,"","",""]
[null,0,null,null,"",null,{"$f":"SumCena(E537,'cenovnik-terapija'!B526:D559,3)","v":0},null,null,null,null,null,"","",""]
[null,0,null,null,"",null,{"$f":"SumCena(E538,'cenovnik-terapija'!B527:D560,3)","v":0},null,null,null,null,null,"","",""]
[null,0,null,null,"",null,{"$f":"SumCena(E539,'cenovnik-terapija'!B528:D561,3)","v":0},null,null,null,null,null,"","",""]
[null,0,null,null,"",null,{"$f":"SumCena(E540,'cenovnik-terapija'!B529:D562,3)","v":0},null,null,null,null,null,"","",""]
[null,0,null,null,"",null,{"$f":"SumCena(E541,'cenovnik-terapija'!B530:D563,3)","v":0},null,null,null,null,null,"","",""]
[null,0,null,null,"",null,{"$f":"SumCena(E542,'cenovnik-terapija'!B531:D564,3)","v":0},null,null,null,null,null,"","",""]
[null,0,null,null,"",null,{"$f":"SumCena(E543,'cenovnik-terapija'!B532:D565,3)","v":0},null,null,null,null,null,"","",""]
[null,0,null,null,"",null,{"$f":"SumCena(E544,'cenovnik-terapija'!B533:D566,3)","v":0},null,null,null,null,null,"","",""]
[null,0,null,null,"",null,{"$f":"SumCena(E545,'cenovnik-terapija'!B534:D567,3)","v":0},null,null,null,null,null,"","",""]
[null,0,null,null,"",null,{"$f":"SumCena(E546,'cenovnik-terapija'!B535:D568,3)","v":0},null,null,null,null,null,"","",""]
[null,0,null,null,"",null,{"$f":"SumCena(E547,'cenovnik-terapija'!B536:D569,3)","v":0},null,null,null,null,null,"","",""]
[null,0,null,null,"",null,{"$f":"SumCena(E548,'cenovnik-terapija'!B537:D570,3)","v":0},null,null,null,null,null,"","",""]
[null,0,null,null,"",null,{"$f":"SumCena(E549,'cenovnik-terapija'!B538:D571,3)","v":0},null,null,null,null,null,"","",""]
[null,0,null,null,"",null,{"$f":"SumCena(E550,'cenovnik-terapija'!B539:D572,3)","v":0},null,null,null,null,null,"","",""]
[null,0,null,null,"",null,{"$f":"SumCena(E551,'cenovnik-terapija'!B540:D573,3)","v":0},null,null,null,null,null,"","",""]
[null,0,null,null,"",null,{"$f":"SumCena(E552,'cenovnik-terapija'!B541:D574,3)","v":0},null,null,null,null,null,"","",""]
[null,0,null,null,"",null,{"$f":"SumCena(E553,'cenovnik-terapija'!B542:D575,3)","v":0},null,null,null,null,null,"","",""]
[null,0,null,null,"",null,{"$f":"SumCena(E554,'cenovnik-terapija'!B543:D576,3)","v":0},null,null,null,null,null,"","",""]
[null,0,null,null,"",null,{"$f":"SumCena(E555,'cenovnik-terapija'!B544:D577,3)","v":0},null,null,null,null,null,"","",""]
[null,0,null,null,"",null,{"$f":"SumCena(E556,'cenovnik-terapija'!B545:D578,3)","v":0},null,null,null,null,null,"","",""]
[null,0,null,null,"",null,{"$f":"SumCena(E557,'cenovnik-terapija'!B546:D579,3)","v":0},null,null,null,null,null,"","",""]
[null,0,null,null,"",null,{"$f":"SumCena(E558,'cenovnik-terapija'!B547:D580,3)","v":0},null,null,null,null,null,"","",""]
[null,0,null,null,"",null,{"$f":"SumCena(E559,'cenovnik-terapija'!B548:D581,3)","v":0},null,null,null,null,null,"","",""]
[null,0,null,null,"",null,{"$f":"SumCena(E560,'cenovnik-terapija'!B549:D582,3)","v":0},null,null,null,null,null,"","",""]
[null,0,null,null,"",null,{"$f":"SumCena(E561,'cenovnik-terapija'!B550:D583,3)","v":0},null,null,null,null,null,"","",""]
[null,0,null,null,"",null,{"$f":"SumCena(E562,'cenovnik-terapija'!B551:D584,3)","v":0},null,null,null,null,null,"","",""]
[null,0,null,null,"",null,{"$f":"SumCena(E563,'cenovnik-terapija'!B552:D585,3)","v":0},null,null,null,null,null,"","",""]
[null,0,null,null,"",null,{"$f":"SumCena(E564,'cenovnik-terapija'!B553:D586,3)","v":0},null,null,null,null,null,"","",""]
[null,0,null,null,"",null,{"$f":"SumCena(E565,'cenovnik-terapija'!B554:D587,3)","v":0},null,null,null,null,null,"","",""]
[null,0,null,null,"",null,{"$f":"SumCena(E566,'cenovnik-terapija'!B555:D588,3)","v":0},null,null,null,null,null,"","",""]
[null,0,null,null,"",null,{"$f":"SumCena(E567,'cenovnik-terapija'!B556:D589,3)","v":0},null,null,null,null,null,"","",""]
[null,0,null,null,"",null,{"$f":"SumCena(E568,'cenovnik-terapija'!B557:D590,3)","v":0},null,null,null,null,null,"","",""]
[null,0,null,null,"",null,{"$f":"SumCena(E569,'cenovnik-terapija'!B558:D591,3)","v":0},null,null,null,null,null,"","",""]
[null,0,null,null,"",null,{"$f":"SumCena(E570,'cenovnik-terapija'!B559:D592,3)","v":0},null,null,null,null,null,"","",""]
[null,0,null,null,"",null,{"$f":"SumCena(E571,'cenovnik-terapija'!B560:D593,3)","v":0},null,null,null,null,null,"","",""]
[null,0,null,null,"",null,{"$f":"SumCena(E572,'cenovnik-terapija'!B561:D594,3)","v":0},null,null,null,null,null,"","",""]
[null,0,null,null,"",null,{"$f":"SumCena(E573,'cenovnik-terapija'!B562:D595,3)","v":0},null,null,null,null,null,"","",""]
[null,0,null,null,"",null,{"$f":"SumCena(E574,'cenovnik-terapija'!B563:D596,3)","v":0},null,null,null,null,null,"","",""]
[null,0,null,null,"",null,{"$f":"SumCena(E575,'cenovnik-terapija'!B564:D597,3)","v":0},null,null,null,null,null,"","",""]
[null,0,null,null,"",null,{"$f":"SumCena(E576,'cenovnik-terapija'!B565:D598,3)","v":0},null,null,null,null,null,"","",""]
[null,0,null,null,"",null,{"$f":"SumCena(E577,'cenovnik-terapija'!B566:D599,3)","v":0},null,null,null,null,null,"","",""]
[null,0,null,null,"",null,{"$f":"SumCena(E578,'cenovnik-terapija'!B567:D600,3)","v":0},null,null,null,null,null,"","",""]
[null,0,null,null,"",null,{"$f":"SumCena(E579,'cenovnik-terapija'!B568:D601,3)","v":0},null,null,null,null,null,"","",""]
[null,0,null,null,"",null,{"$f":"SumCena(E580,'cenovnik-terapija'!B569:D602,3)","v":0},null,null,null,null,null,"","",""]
[null,0,null,null,"",null,{"$f":"SumCena(E581,'cenovnik-terapija'!B570:D603,3)","v":0},null,null,null,null,null,"","",""]
[null,0,null,null,"",null,{"$f":"SumCena(E582,'cenovnik-terapija'!B571:D604,3)","v":0},null,null,null,null,null,"","",""]
[null,0,null,null,"",null,{"$f":"SumCena(E583,'cenovnik-terapija'!B572:D605,3)","v":0},null,null,null,null,null,"","",""]
[null,0,null,null,"",null,{"$f":"SumCena(E584,'cenovnik-terapija'!B573:D606,3)","v":0},null,null,null,null,null,"","",""]
[null,0,null,null,"",null,{"$f":"SumCena(E585,'cenovnik-terapija'!B574:D607,3)","v":0},null,null,null,null,null,"","",""]
[null,0,null,null,"",null,{"$f":"SumCena(E586,'cenovnik-terapija'!B575:D608,3)","v":0},null,null,null,null,null,"","",""]
[null,0,null,null,"",null,{"$f":"SumCena(E587,'cenovnik-terapija'!B576:D609,3)","v":0},null,null,null,null,null,"","",""]
[null,0,null,null,"",null,{"$f":"SumCena(E588,'cenovnik-terapija'!B577:D610,3)","v":0},null,null,null,null,null,{"$f":"IFERROR(LEFT(E588,SEARCH(\",\",E588)-1),E588)","v":""},{"$f":"IFERROR(TRIM(IFERROR(MID(E588,SEARCH(\",\",E588)+1,SEARCH(\",\",E588,SEARCH(\",\",E588)+1)-SEARCH(\",\",E588)-1),\"\")),\"\")","v":""},{"$f":"IFERROR(TRIM(IF(LEN(E588)-LEN(SUBSTITUTE(E588,\",\",\"\"))=1,RIGHT(E588,LEN(E588)-SEARCH(\",\",E588)),RIGHT(E588,LEN(E588)-SEARCH(\",\",E588,SEARCH(\",\",E588)+1)))),\"\")","v":""}]
[null,0,null,null,"",null,{"$f":"SumCena(E589,'cenovnik-terapija'!B578:D611,3)","v":0},null,null,null,null,null,"","",""]
[null,0,null,null,"",null,{"$f":"SumCena(E590,'cenovnik-terapija'!B579:D612,3)","v":0},null,null,null,null,null,"","",""]
[null,0,null,null,"",null,{"$f":"SumCena(E591,'cenovnik-terapija'!B580:D613,3)","v":0},null,null,null,null,null,"","",""]
[null,0,null,null,"",null,{"$f":"SumCena(E592,'cenovnik-terapija'!B581:D614,3)","v":0},null,null,null,null,null,"","",""]
[null,0,null,null,"",null,{"$f":"SumCena(E593,'cenovnik-terapija'!B582:D615,3)","v":0},null,null,null,null,null,"","",""]
[null,0,null,null,"",null,{"$f":"SumCena(E594,'cenovnik-terapija'!B583:D616,3)","v":0},null,null,null,null,null,"","",""]
[null,0,null,null,"",null,{"$f":"SumCena(E595,'cenovnik-terapija'!B584:D617,3)","v":0},null,null,null,null,null,"","",""]
[null,0,null,null,"",null,{"$f":"SumCena(E596,'cenovnik-terapija'!B585:D618,3)","v":0},null,null,null,null,null,"","",""]
[null,0,null,null,"",null,{"$f":"SumCena(E597,'cenovnik-terapija'!B586:D619,3)","v":0},null,null,null,null,null,"","",""]
[null,0,null,null,"",null,{"$f":"SumCena(E598,'cenovnik-terapija'!B587:D620,3)","v":0},null,null,null,null,null,"","",""]
[null,0,null,null,"",null,{"$f":"SumCena(E599,'cenovnik-terapija'!B588:D621,3)","v":0},null,null,null,null,null,"","",""]
[null,0,null,null,"",null,{"$f":"SumCena(E600,'cenovnik-terapija'!B589:D622,3)","v":0},null,null,null,null,null,"","",""]
[null,0,null,null,"",null,{"$f":"SumCena(E601,'cenovnik-terapija'!B590:D623,3)","v":0},null,null,null,null,null,"","",""]
[null,0,null,null,"",null,{"$f":"SumCena(E602,'cenovnik-terapija'!B591:D624,3)","v":0},null,null,null,null,null,"","",""]
[null,0,null,null,"",null,{"$f":"SumCena(E603,'cenovnik-terapija'!B592:D625,3)","v":0},null,null,null,null,null,"","",""]
[null,0,null,null,"",null,{"$f":"SumCena(E604,'cenovnik-terapija'!B593:D626,3)","v":0},null,null,null,null,null,"","",""]
[null,0,null,null,"",null,{"$f":"SumCena(E605,'cenovnik-terapija'!B594:D627,3)","v":0},null,null,null,null,null,"","",""]
[null,0,null,null,"",null,{"$f":"SumCena(E606,'cenovnik-terapija'!B595:D628,3)","v":0},null,null,null,null,null,"","",""]
[null,0,null,null,"",null,{"$f":"SumCena(E607,'cenovnik-terapija'!B596:D629,3)","v":0},null,null,null,null,null,"","",""]
[null,0,null,null,"",null,{"$f":"SumCena(E608,'cenovnik-terapija'!B597:D630,3)","v":0},null,null,null,null,null,"","",""]
[null,0,null,null,"",null,{"$f":"SumCena(E609,'cenovnik-terapija'!B598:D631,3)","v":0},null,null,null,null,null,"","",""]
[null,0,null,null,"",null,{"$f":"SumCena(E610,'cenovnik-terapija'!B599:D632,3)","v":0},null,null,null,null,null,"","",""]
[null,0,null,null,"",null,{"$f":"SumCena(E611,'cenovnik-terapija'!B600:D633,3)","v":0},null,null,null,null,null,"","",""]
[null,0,null,null,"",null,{"$f":"SumCena(E612,'cenovnik-terapija'!B601:D634,3)","v":0},null,null,null,null,null,"","",""]
[null,0,null,null,"",null,{"$f":"SumCena(E613,'cenovnik-terapija'!B602:D635,3)","v":0},null,null,null,null,null,"","",""]
[null,0,null,null,"",null,{"$f":"SumCena(E614,'cenovnik-terapija'!B603:D636,3)","v":0},null,null,null,null,null,"","",""]
[null,0,null,null,"",null,{"$f":"SumCena(E615,'cenovnik-terapija'!B604:D637,3)","v":0},null,null,null,null,null,"","",""]
[null,0,null,null,"",null,{"$f":"SumCena(E616,'cenovnik-terapija'!B605:D638,3)","v":0},null,null,null,null,null,"","",""]
[null,0,null,null,"",null,{"$f":"SumCena(E617,'cenovnik-terapija'!B606:D639,3)","v":0},null,null,null,null,null,"","",""]
[null,0,null,null,"",null,{"$f":"SumCena(E618,'cenovnik-terapija'!B607:D640,3)","v":0},null,null,null,null,null,"","",""]
[null,0,null,null,"",null,{"$f":"SumCena(E619,'cenovnik-terapija'!B608:D641,3)","v":0},null,null,null,null,null,"","",""]
[null,0,null,null,"",null,{"$f":"SumCena(E620,'cenovnik-terapija'!B609:D642,3)","v":0},null,null,null,null,null,"","",""]
[null,0,null,null,"",null,{"$f":"SumCena(E621,'cenovnik-terapija'!B610:D643,3)","v":0},null,null,null,null,null,"","",""]
[null,0,null,null,"",null,{"$f":"SumCena(E622,'cenovnik-terapija'!B611:D644,3)","v":0},null,null,null,null,null,"","",""]
[null,0,null,null,"",null,{"$f":"SumCena(E623,'cenovnik-terapija'!B612:D645,3)","v":0},null,null,null,null,null,"","",""]
[null,0,null,null,"",null,{"$f":"SumCena(E624,'cenovnik-terapija'!B613:D646,3)","v":0},null,null,null,null,null,"","",""]
[null,0,null,null,"",null,{"$f":"SumCena(E625,'cenovnik-terapija'!B614:D647,3)","v":0},null,null,null,null,null,"","",""]
[null,0,null,null,"",null,{"$f":"SumCena(E626,'cenovnik-terapija'!B615:D648,3)","v":0},null,null,null,null,null,"","",""]
[null,0,null,null,"",null,{"$f":"SumCena(E627,'cenovnik-terapija'!B616:D649,3)","v":0},null,null,null,null,null,"","",""]
[null,0,null,null,"",null,{"$f":"SumCena(E628,'cenovnik-terapija'!B617:D650,3)","v":0},null,null,null,null,null,"","",""]
[null,0,null,null,"",null,{"$f":"SumCena(E629,'cenovnik-terapija'!B618:D651,3)","v":0},null,null,null,null,null,"","",""]
[null,0,null,null,"",null,{"$f":"SumCena(E630,'cenovnik-terapija'!B619:D652,3)","v":0},null,null,null,null,null,"","",""]
[null,0,null,null,"",null,{"$f":"SumCena(E631,'cenovnik-terapija'!B620:D653,3)","v":0},null,null,null,null,null,"","",""]
[null,0,null,null,"",null,{"$f":"SumCena(E632,'cenovnik-terapija'!B621:D654,3)","v":0},null,null,null,null,null,"","",""]
[null,0,null,null,"",null,{"$f":"SumCena(E633,'cenovnik-terapija'!B622:D655,3)","v":0},null,null,null,null,null,"","",""]
[null,0,null,null,"",null,{"$f":"SumCena(E634,'cenovnik-terapija'!B623:D656,3)","v":0},null,null,null,null,null,"","",""]
[null,0,null,null,"",null,{"$f":"SumCena(E635,'cenovnik-terapija'!B624:D657,3)","v":0},null,null,null,null,null,"","",""]
[null,0,null,null,"",null,{"$f":"SumCena(E636,'cenovnik-terapija'!B625:D658,3)","v":0},null,null,null,null,null,"","",""]
[null,0,null,null,"",null,{"$f":"SumCena(E637,'cenovnik-terapija'!B626:D659,3)","v":0},null,null,null,null,null,"","",""]
[null,0,null,null,"",null,{"$f":"SumCena(E638,'cenovnik-terapija'!B627:D660,3)","v":0},null,null,null,null,null,"","",""]
[null,0,null,null,"",null,{"$f":"SumCena(E639,'cenovnik-terapija'!B628:D661,3)","v":0},null,null,null,null,null,"","",""]
[null,0,null,null,"",null,{"$f":"SumCena(E640,'cenovnik-terapija'!B629:D662,3)","v":0},null,null,null,null,null,"","",""]
[null,0,null,null,"",null,{"$f":"SumCena(E641,'cenovnik-terapija'!B630:D663,3)","v":0},null,null,null,null,null,"","",""]
[null,0,null,null,"",null,{"$f":"SumCena(E642,'cenovnik-terapija'!B631:D664,3)","v":0},null,null,null,null,null,"","",""]
[null,0,null,null,"",null,{"$f":"SumCena(E643,'cenovnik-terapija'!B632:D665,3)","v":0},null,null,null,null,null,"","",""]
[null,0,null,null,"",null,{"$f":"SumCena(E644,'cenovnik-terapija'!B633:D666,3)","v":0},null,null,null,null,null,"","",""]
[null,0,null,null,"",null,{"$f":"SumCena(E645,'cenovnik-terapija'!B634:D667,3)","v":0},null,null,null,null,null,"","",""]
[null,0,null,null,"",null,{"$f":"SumCena(E646,'cenovnik-terapija'!B635:D668,3)","v":0},null,null,null,null,null,"","",""]
[null,0,null,null,"",null,{"$f":"SumCena(E647,'cenovnik-terapija'!B636:D669,3)","v":0},null,null,null,null,null,"","",""]
[null,0,null,null,"",null,{"$f":"SumCena(E648,'cenovnik-terapija'!B637:D670,3)","v":0},null,null,null,null,null,"","",""]
[null,0,null,null,"",null,{"$f":"SumCena(E649,'cenovnik-terapija'!B638:D671,3)","v":0},null,null,null,null,null,"","",""]
[null,0,null,null,"",null,{"$f":"SumCena(E650,'cenovnik-terapija'!B639:D672,3)","v":0},null,null,null,null,null,"","",""]
[null,0,null,null,"",null,{"$f":"SumCena(E651,'cenovnik-terapija'!B640:D673,3)","v":0},null,null,null,null,null,"","",""]
[null,0,null,null,"",null,{"$f":"SumCena(E652,'cenovnik-terapija'!B641:D674,3)","v":0},null,null,null,null,null,{"$f":"IFERROR(LEFT(E652,SEARCH(\",\",E652)-1),E652)","v":""},{"$f":"IFERROR(TRIM(IFERROR(MID(E652,SEARCH(\",\",E652)+1,SEARCH(\",\",E652,SEARCH(\",\",E652)+1)-SEARCH(\",\",E652)-1),\"\")),\"\")","v":""},{"$f":"IFERROR(TRIM(IF(LEN(E652)-LEN(SUBSTITUTE(E652,\",\",\"\"))=1,RIGHT(E652,LEN(E652)-SEARCH(\",\",E652)),RIGHT(E652,LEN(E652)-SEARCH(\",\",E652,SEARCH(\",\",E652)+1)))),\"\")","v":""}]
[null,0,null,null,"",null,{"$f":"SumCena(E653,'cenovnik-terapija'!B642:D675,3)","v":0},null,null,null,null,null,"","",""]
[null,0,null,null,"",null,{"$f":"SumCena(E654,'cenovnik-terapija'!B643:D676,3)","v":0},null,null,null,null,null,"","",""]
[null,0,null,null,"",null,{"$f":"SumCena(E655,'cenovnik-terapija'!B644:D677,3)","v":0},null,null,null,null,null,"","",""]
[null,0,null,null,"",null,{"$f":"SumCena(E656,'cenovnik-terapija'!B645:D678,3)","v":0},null,null,null,null,null,"","",""]
[null,0,null,null,"",null,{"$f":"SumCena(E657,'cenovnik-terapija'!B646:D679,3)","v":0},null,null,null,null,null,"","",""]
[null,0,null,null,"",null,{"$f":"SumCena(E658,'cenovnik-terapija'!B647:D680,3)","v":0},null,null,null,null,null,"","",""]
[null,0,null,null,"",null,{"$f":"SumCena(E659,'cenovnik-terapija'!B648:D681,3)","v":0},null,null,null,null,null,"","",""]
[null,0,null,null,"",null,{"$f":"SumCena(E660,'cenovnik-terapija'!B649:D682,3)","v":0},null,null,null,null,null,"","",""]
[null,0,null,null,"",null,{"$f":"SumCena(E661,'cenovnik-terapija'!B650:D683,3)","v":0},null,null,null,null,null,"","",""]
[null,0,null,null,"",null,{"$f":"SumCena(E662,'cenovnik-terapija'!B651:D684,3)","v":0},null,null,null,null,null,"","",""]
[null,0,null,null,"",null,{"$f":"SumCena(E663,'cenovnik-terapija'!B652:D685,3)","v":0},null,null,null,null,null,"","",""]
[null,0,null,null,"",null,{"$f":"SumCena(E664,'cenovnik-terapija'!B653:D686,3)","v":0},null,null,null,null,null,"","",""]
[null,0,null,null,"",null,{"$f":"SumCena(E665,'cenovnik-terapija'!B654:D687,3)","v":0},null,null,null,null,null,"","",""]
[null,0,null,null,"",null,{"$f":"SumCena(E666,'cenovnik-terapija'!B655:D688,3)","v":0},null,null,null,null,null,"","",""]
[null,0,null,null,"",null,{"$f":"SumCena(E667,'cenovnik-terapija'!B656:D689,3)","v":0},null,null,null,null,null,"","",""]
[null,0,null,null,"",null,{"$f":"SumCena(E668,'cenovnik-terapija'!B657:D690,3)","v":0},null,null,null,null,null,"","",""]
[null,0,null,null,"",null,{"$f":"SumCena(E669,'cenovnik-terapija'!B658:D691,3)","v":0},null,null,null,null,null,"","",""]
[null,0,null,null,"",null,{"$f":"SumCena(E670,'cenovnik-terapija'!B659:D692,3)","v":0},null,null,null,null,null,"","",""]
[null,0,null,null,"",null,{"$f":"SumCena(E671,'cenovnik-terapija'!B660:D693,3)","v":0},null,null,null,null,null,"","",""]
[null,0,null,null,"",null,{"$f":"SumCena(E672,'cenovnik-terapija'!B661:D694,3)","v":0},null,null,null,null,null,"","",""]
[null,0,null,null,"",null,{"$f":"SumCena(E673,'cenovnik-terapija'!B662:D695,3)","v":0},null,null,null,null,null,"","",""]
[null,0,null,null,"",null,{"$f":"SumCena(E674,'cenovnik-terapija'!B663:D696,3)","v":0},null,null,null,null,null,"","",""]
[null,0,null,null,"",null,{"$f":"SumCena(E675,'cenovnik-terapija'!B664:D697,3)","v":0},null,null,null,null,null,"","",""]
[null,0,null,null,"",null,{"$f":"SumCena(E676,'cenovnik-terapija'!B665:D698,3)","v":0},null,null,null,null,null,"","",""]
[null,0,null,null,"",null,{"$f":"SumCena(E677,'cenovnik-terapija'!B666:D699,3)","v":0},null,null,null,null,null,"","",""]
[null,0,null,null,"",null,{"$f":"SumCena(E678,'cenovnik-terapija'!B667:D700,3)","v":0},null,null,null,null,null,"","",""]
[null,0,null,null,"",null,{"$f":"SumCena(E679,'cenovnik-terapija'!B668:D701,3)","v":0},null,null,null,null,null,"","",""]
[null,0,null,null,"",null,{"$f":"SumCena(E680,'cenovnik-terapija'!B669:D702,3)","v":0},null,null,null,null,null,"","",""]
[null,0,null,null,"",null,{"$f":"SumCena(E681,'cenovnik-terapija'!B670:D703,3)","v":0},null,null,null,null,null,"","",""]
[null,0,null,null,"",null,{"$f":"SumCena(E682,'cenovnik-terapija'!B671:D704,3)","v":0},null,null,null,null,null,"","",""]
[null,0,null,null,"",null,{"$f":"SumCena(E683,'cenovnik-terapija'!B672:D705,3)","v":0},null,null,null,null,null,"","",""]
[null,0,null,null,"",null,{"$f":"SumCena(E684,'cenovnik-terapija'!B673:D706,3)","v":0},null,null,null,null,null,"","",""]
[null,0,null,null,"",null,{"$f":"SumCena(E685,'cenovnik-terapija'!B674:D707,3)","v":0},null,null,null,null,null,"","",""]
[null,0,null,null,"",null,{"$f":"SumCena(E686,'cenovnik-terapija'!B675:D708,3)","v":0},null,null,null,null,null,"","",""]
[null,0,null,null,"",null,{"$f":"SumCena(E687,'cenovnik-terapija'!B676:D709,3)","v":0},null,null,null,null,null,"","",""]
[null,0,null,null,"",null,{"$f":"SumCena(E688,'cenovnik-terapija'!B677:D710,3)","v":0},null,null,null,null,null,"","",""]
[null,0,null,null,"",null,{"$f":"SumCena(E689,'cenovnik-terapija'!B678:D711,3)","v":0},null,null,null,null,null,"","",""]
[null,0,null,null,"",null,{"$f":"SumCena(E690,'cenovnik-terapija'!B679:D712,3)","v":0},null,null,null,null,null,"","",""]
[null,0,null,null,"",null,{"$f":"SumCena(E691,'cenovnik-terapija'!B680:D713,3)","v":0},null,null,null,null,null,"","",""]
[null,0,null,null,"",null,{"$f":"SumCena(E692,'cenovnik-terapija'!B681:D714,3)","v":0},null,null,null,null,null,"","",""]
[null,0,null,null,"",null,{"$f":"SumCena(E693,'cenovnik-terapija'!B682:D715,3)","v":0},null,null,null,null,null,"","",""]
[null,0,null,null,"",null,{"$f":"SumCena(E694,'cenovnik-terapija'!B683:D716,3)","v":0},null,null,null,null,null,"","",""]
[null,0,null,null,"",null,{"$f":"SumCena(E695,'cenovnik-terapija'!B684:D717,3)","v":0},null,null,null,null,null,"","",""]
[null,0,null,null,"",null,{"$f":"SumCena(E696,'cenovnik-terapija'!B685:D718,3)","v":0},null,null,null,null,null,"","",""]
[null,0,null,null,"",null,{"$f":"SumCena(E697,'cenovnik-terapija'!B686:D719,3)","v":0},null,null,null,null,null,"","",""]
[null,0,null,null,"",null,{"$f":"SumCena(E698,'cenovnik-terapija'!B687:D720,3)","v":0},null,null,null,null,null,"","",""]
[null,0,null,null,"",null,{"$f":"SumCena(E699,'cenovnik-terapija'!B688:D721,3)","v":0},null,null,null,null,null,"","",""]
[null,0,null,null,"",null,{"$f":"SumCena(E700,'cenovnik-terapija'!B689:D722,3)","v":0},null,null,null,null,null,"","",""]
[null,0,null,null,"",null,{"$f":"SumCena(E701,'cenovnik-terapija'!B690:D723,3)","v":0},null,null,null,null,null,"","",""]
[null,0,null,null,"",null,{"$f":"SumCena(E702,'cenovnik-terapija'!B691:D724,3)","v":0},null,null,null,null,null,"","",""]
[null,0,null,null,"",null,{"$f":"SumCena(E703,'cenovnik-terapija'!B692:D725,3)","v":0},null,null,null,null,null,"","",""]
[null,0,null,null,"",null,{"$f":"SumCena(E704,'cenovnik-terapija'!B693:D726,3)","v":0},null,null,null,null,null,"","",""]
[null,0,null,null,"",null,{"$f":"SumCena(E705,'cenovnik-terapija'!B694:D727,3)","v":0},null,null,null,null,null,"","",""]
[null,0,null,null,"",null,{"$f":"SumCena(E706,'cenovnik-terapija'!B695:D728,3)","v":0},null,null,null,null,null,"","",""]
[null,0,null,null,"",null,{"$f":"SumCena(E707,'cenovnik-terapija'!B696:D729,3)","v":0},null,null,null,null,null,"","",""]
[null,0,null,null,"",null,{"$f":"SumCena(E708,'cenovnik-terapija'!B697:D730,3)","v":0},null,null,null,null,null,"","",""]
[null,0,null,null,"",null,{"$f":"SumCena(E709,'cenovnik-terapija'!B698:D731,3)","v":0},null,null,null,null,null,"","",""]
[null,0,null,null,"",null,{"$f":"SumCena(E710,'cenovnik-terapija'!B699:D732,3)","v":0},null,null,null,null,null,"","",""]
[null,0,null,null,"",null,{"$f":"SumCena(E711,'cenovnik-terapija'!B700:D733,3)","v":0},null,null,null,null,null,"","",""]
[null,0,null,null,"",null,{"$f":"SumCena(E712,'cenovnik-terapija'!B701:D734,3)","v":0},null,null,null,null,null,"","",""]
[null,0,null,null,"",null,{"$f":"SumCena(E713,'cenovnik-terapija'!B702:D735,3)","v":0},null,null,null,null,null,"","",""]
[null,0,null,null,"",null,{"$f":"SumCena(E714,'cenovnik-terapija'!B703:D736,3)","v":0},null,null,null,null,null,"","",""]
[null,0,null,null,"",null,{"$f":"SumCena(E715,'cenovnik-terapija'!B704:D737,3)","v":0},null,null,null,null,null,"","",""]
[null,0,null,null,"",null,{"$f":"SumCena(E716,'cenovnik-terapija'!B705:D738,3)","v":0},null,null,null,null,null,{"$f":"IFERROR(LEFT(E716,SEARCH(\",\",E716)-1),E716)","v":""},{"$f":"IFERROR(TRIM(IFERROR(MID(E716,SEARCH(\",\",E716)+1,SEARCH(\",\",E716,SEARCH(\",\",E716)+1)-SEARCH(\",\",E716)-1),\"\")),\"\")","v":""},{"$f":"IFERROR(TRIM(IF(LEN(E716)-LEN(SUBSTITUTE(E716,\",\",\"\"))=1,RIGHT(E716,LEN(E716)-SEARCH(\",\",E716)),RIGHT(E716,LEN(E716)-SEARCH(\",\",E716,SEARCH(\",\",E716)+1)))),\"\")","v":""}]
[null,0,null,null,"",null,{"$f":"SumCena(E717,'cenovnik-terapija'!B706:D739,3)","v":0},null,null,null,null,null,"","",""]
[null,0,null,null,"",null,{"$f":"SumCena(E718,'cenovnik-terapija'!B707:D740,3)","v":0},null,null,null,null,null,"","",""]
[null,0,null,null,"",null,{"$f":"SumCena(E719,'cenovnik-terapija'!B708:D741,3)","v":0},null,null,null,null,null,"","",""]
[null,0,null,null,"",null,{"$f":"SumCena(E720,'cenovnik-terapija'!B709:D742,3)","v":0},null,null,null,null,null,"","",""]
[null,0,null,null,"",null,{"$f":"SumCena(E721,'cenovnik-terapija'!B710:D743,3)","v":0},null,null,null,null,null,"","",""]
[null,0,null,null,"",null,{"$f":"SumCena(E722,'cenovnik-terapija'!B711:D744,3)","v":0},null,null,null,null,null,"","",""]
[null,0,null,null,"",null,{"$f":"SumCena(E723,'cenovnik-terapija'!B712:D745,3)","v":0},null,null,null,null,null,"","",""]
[null,0,null,null,"",null,{"$f":"SumCena(E724,'cenovnik-terapija'!B713:D746,3)","v":0},null,null,null,null,null,"","",""]
[null,0,null,null,"",null,{"$f":"SumCena(E725,'cenovnik-terapija'!B714:D747,3)","v":0},null,null,null,null,null,"","",""]
[null,0,null,null,"",null,{"$f":"SumCena(E726,'cenovnik-terapija'!B715:D748,3)","v":0},null,null,null,null,null,"","",""]
[null,0,null,null,"",null,{"$f":"SumCena(E727,'cenovnik-terapija'!B716:D749,3)","v":0},null,null,null,null,null,"","",""]
[null,0,null,null,"",null,{"$f":"SumCena(E728,'cenovnik-terapija'!B717:D750,3)","v":0},null,null,null,null,null,"","",""]
[null,0,null,null,"",null,{"$f":"SumCena(E729,'cenovnik-terapija'!B718:D751,3)","v":0},null,null,null,null,null,"","",""]
[null,0,null,null,"",null,{"$f":"SumCena(E730,'cenovnik-terapija'!B719:D752,3)","v":0},null,null,null,null,null,"","",""]
[null,0,null,null,"",null,{"$f":"SumCena(E731,'cenovnik-terapija'!B720:D753,3)","v":0},null,null,null,null,null,"","",""]
[null,0,null,null,"",null,{"$f":"SumCena(E732,'cenovnik-terapija'!B721:D754,3)","v":0},null,null,null,null,null,"","",""]
[null,0,null,null,"",null,{"$f":"SumCena(E733,'cenovnik-terapija'!B722:D755,3)","v":0},null,null,null,null,null,"","",""]
[null,0,null,null,"",null,{"$f":"SumCena(E734,'cenovnik-terapija'!B723:D756,3)","v":0},null,null,null,null,null,"","",""]
[null,0,null,null,"",null,{"$f":"SumCena(E735,'cenovnik-terapija'!B724:D757,3)","v":0},null,null,null,null,null,"","",""]
[null,0,null,null,"",null,{"$f":"SumCena(E736,'cenovnik-terapija'!B725:D758,3)","v":0},null,null,null,null,null,"","",""]
[null,0,null,null,"",null,{"$f":"SumCena(E737,'cenovnik-terapija'!B726:D759,3)","v":0},null,null,null,null,null,"","",""]
[null,0,null,null,"",null,{"$f":"SumCena(E738,'cenovnik-terapija'!B727:D760,3)","v":0},null,null,null,null,null,"","",""]
[null,0,null,null,"",null,{"$f":"SumCena(E739,'cenovnik-terapija'!B728:D761,3)","v":0},null,null,null,null,null,"","",""]
[null,0,null,null,"",null,{"$f":"SumCena(E740,'cenovnik-terapija'!B729:D762,3)","v":0},null,null,null,null,null,"","",""]
[null,0,null,null,"",null,{"$f":"SumCena(E741,'cenovnik-terapija'!B730:D763,3)","v":0},null,null,null,null,null,"","",""]
[null,0,null,null,"",null,{"$f":"SumCena(E742,'cenovnik-terapija'!B731:D764,3)","v":0},null,null,null,null,null,"","",""]
[null,0,null,null,"",null,{"$f":"SumCena(E743,'cenovnik-terapija'!B732:D765,3)","v":0},null,null,null,null,null,"","",""]
[null,0,null,null,"",null,{"$f":"SumCena(E744,'cenovnik-terapija'!B733:D766,3)","v":0},null,null,null,null,null,"","",""]
[null,0,null,null,"",null,{"$f":"SumCena(E745,'cenovnik-terapija'!B734:D767,3)","v":0},null,null,null,null,null,"","",""]
[null,0,null,null,"",null,{"$f":"SumCena(E746,'cenovnik-terapija'!B735:D768,3)","v":0},null,null,null,null,null,"","",""]
[null,0,null,null,"",null,{"$f":"SumCena(E747,'cenovnik-terapija'!B736:D769,3)","v":0},null,null,null,null,null,"","",""]
[null,0,null,null,"",null,{"$f":"SumCena(E748,'cenovnik-terapija'!B737:D770,3)","v":0},null,null,null,null,null,"","",""]
[null,0,null,null,"",null,{"$f":"SumCena(E749,'cenovnik-terapija'!B738:D771,3)","v":0},null,null,null,null,null,"","",""]
[null,0,null,null,"",null,{"$f":"SumCena(E750,'cenovnik-terapija'!B739:D772,3)","v":0},null,null,null,null,null,"","",""]
[null,0,null,null,"",null,{"$f":"SumCena(E751,'cenovnik-terapija'!B740:D773,3)","v":0},null,null,null,null,null,"","",""]
[null,0,null,null,"",null,{"$f":"SumCena(E752,'cenovnik-terapija'!B741:D774,3)","v":0},null,null,null,null,null,"","",""]
[null,0,null,null,"",null,{"$f":"SumCena(E753,'cenovnik-terapija'!B742:D775,3)","v":0},null,null,null,null,null,"","",""]
[null,0,null,null,"",null,{"$f":"SumCena(E754,'cenovnik-terapija'!B743:D776,3)","v":0},null,null,null,null,null,"","",""]
[null,0,null,null,"",null,{"$f":"SumCena(E755,'cenovnik-terapija'!B744:D777,3)","v":0},null,null,null,null,null,"","",""]
[null,0,null,null,"",null,{"$f":"SumCena(E756,'cenovnik-terapija'!B745:D778,3)","v":0},null,null,null,null,null,"","",""]
[null,0,null,null,"",null,{"$f":"SumCena(E757,'cenovnik-terapija'!B746:D779,3)","v":0},null,null,null,null,null,"","",""]
[null,0,null,null,"",null,{"$f":"SumCena(E758,'cenovnik-terapija'!B747:D780,3)","v":0},null,null,null,null,null,"","",""]
[null,0,null,null,"",null,{"$f":"SumCena(E759,'cenovnik-terapija'!B748:D781,3)","v":0},null,null,null,null,null,"","",""]
[null,0,null,null,"",null,{"$f":"SumCena(E760,'cenovnik-terapija'!B749:D782,3)","v":0},null,null,null,null,null,"","",""]
[null,0,null,null,"",null,{"$f":"SumCena(E761,'cenovnik-terapija'!B750:D783,3)","v":0},null,null,null,null,null,"","",""]
[null,0,null,null,"",null,{"$f":"SumCena(E762,'cenovnik-terapija'!B751:D784,3)","v":0},null,null,null,null,null,"","",""]
[null,0,null,null,"",null,{"$f":"SumCena(E763,'cenovnik-terapija'!B752:D785,3)","v":0},null,null,null,null,null,"","",""]
[null,0,null,null,"",null,{"$f":"SumCena(E764,'cenovnik-terapija'!B753:D786,3)","v":0},null,null,null,null,null,"","",""]
[null,0,null,null,"",null,{"$f":"SumCena(E765,'cenovnik-terapija'!B754:D787,3)","v":0},null,null,null,null,null,"","",""]
[null,0,null,null,"",null,{"$f":"SumCena(E766,'cenovnik-terapija'!B755:D788,3)","v":0},null,null,null,null,null,"","",""]
[null,0,null,null,"",null,{"$f":"SumCena(E767,'cenovnik-terapija'!B756:D789,3)","v":0},null,null,null,null,null,"","",""]
[null,0,null,null,"",null,{"$f":"SumCena(E768,'cenovnik-terapija'!B757:D790,3)","v":0},null,null,null,null,null,"","",""]
[null,0,null,null,"",null,{"$f":"SumCena(E769,'cenovnik-terapija'!B758:D791,3)","v":0},null,null,null,null,null,"","",""]
[null,0,null,null,"",null,{"$f":"SumCena(E770,'cenovnik-terapija'!B759:D792,3)","v":0},null,null,null,null,null,"","",""]
[null,0,null,null,"",null,{"$f":"SumCena(E771,'cenovnik-terapija'!B760:D793,3)","v":0},null,null,null,null,null,"","",""]
[null,0,null,null,"",null,{"$f":"SumCena(E772,'cenovnik-terapija'!B761:D794,3)","v":0},null,null,null,null,null,"","",""]
[null,0,null,null,"",null,{"$f":"SumCena(E773,'cenovnik-terapija'!B762:D795,3)","v":0},null,null,null,null,null,"","",""]
[null,0,null,null,"",null,{"$f":"SumCena(E774,'cenovnik-terapija'!B763:D796,3)","v":0},null,null,null,null,null,"","",""]
[null,0,null,null,"",null,{"$f":"SumCena(E775,'cenovnik-terapija'!B764:D797,3)","v":0},null,null,null,null,null,"","",""]
[null,0,null,null,"",null,{"$f":"SumCena(E776,'cenovnik-terapija'!B765:D798,3)","v":0},null,null,null,null,null,"","",""]
[null,0,null,null,"",null,{"$f":"SumCena(E777,'cenovnik-terapija'!B766:D799,3)","v":0},null,null,null,null,null,"","",""]
[null,0,null,null,"",null,{"$f":"SumCena(E778,'cenovnik-terapija'!B767:D800,3)","v":0},null,null,null,null,null,"","",""]
[null,0,null,null,"",null,{"$f":"SumCena(E779,'cenovnik-terapija'!B768:D801,3)","v":0},null,null,null,null,null,"","",""]
[null,0,null,null,"",null,{"$f":"SumCena(E780,'cenovnik-terapija'!B769:D802,3)","v":0},null,null,null,null,null,{"$f":"IFERROR(LEFT(E780,SEARCH(\",\",E780)-1),E780)","v":""},{"$f":"IFERROR(TRIM(IFERROR(MID(E780,SEARCH(\",\",E780)+1,SEARCH(\",\",E780,SEARCH(\",\",E780)+1)-SEARCH(\",\",E780)-1),\"\")),\"\")","v":""},{"$f":"IFERROR(TRIM(IF(LEN(E780)-LEN(SUBSTITUTE(E780,\",\",\"\"))=1,RIGHT(E780,LEN(E780)-SEARCH(\",\",E780)),RIGHT(E780,LEN(E780)-SEARCH(\",\",E780,SEARCH(\",\",E780)+1)))),\"\")","v":""}]
[null,0,null,null,"",null,{"$f":"SumCena(E781,'cenovnik-terapija'!B770:D803,3)","v":0},null,null,null,null,null,"","",""]
[null,0,null,null,"",null,{"$f":"SumCena(E782,'cenovnik-terapija'!B771:D804,3)","v":0},null,null,null,null,null,"","",""]
[null,0,null,null,"",null,{"$f":"SumCena(E783,'cenovnik-terapija'!B772:D805,3)","v":0},null,null,null,null,null,"","",""]
[null,0,null,null,"",null,{"$f":"SumCena(E784,'cenovnik-terapija'!B773:D806,3)","v":0},null,null,null,null,null,"","",""]
[null,0,null,null,"",null,{"$f":"SumCena(E785,'cenovnik-terapija'!B774:D807,3)","v":0},null,null,null,null,null,"","",""]
[null,0,null,null,"",null,{"$f":"SumCena(E786,'cenovnik-terapija'!B775:D808,3)","v":0},null,null,null,null,null,"","",""]
[null,0,null,null,"",null,{"$f":"SumCena(E787,'cenovnik-terapija'!B776:D809,3)","v":0},null,null,null,null,null,"","",""]
[null,0,null,null,"",null,{"$f":"SumCena(E788,'cenovnik-terapija'!B777:D810,3)","v":0},null,null,null,null,null,"","",""]
[null,0,null,null,"",null,{"$f":"SumCena(E789,'cenovnik-terapija'!B778:D811,3)","v":0},null,null,null,null,null,"","",""]
[null,0,null,null,"",null,{"$f":"SumCena(E790,'cenovnik-terapija'!B779:D812,3)","v":0},null,null,null,null,null,"","",""]
[null,0,null,null,"",null,{"$f":"SumCena(E791,'cenovnik-terapija'!B780:D813,3)","v":0},null,null,null,null,null,"","",""]
[null,0,null,null,"",null,{"$f":"SumCena(E792,'cenovnik-terapija'!B781:D814,3)","v":0},null,null,null,null,null,"","",""]
[null,0,null,null,"",null,{"$f":"SumCena(E793,'cenovnik-terapija'!B782:D815,3)","v":0},null,null,null,null,null,"","",""]
[null,0,null,null,"",null,{"$f":"SumCena(E794,'cenovnik-terapija'!B783:D816,3)","v":0},null,null,null,null,null,"","",""]
[null,0,null,null,"",null,{"$f":"SumCena(E795,'cenovnik-terapija'!B784:D817,3)","v":0},null,null,null,null,null,"","",""]
[null,0,null,null,"",null,{"$f":"SumCena(E796,'cenovnik-terapija'!B785:D818,3)","v":0},null,null,null,null,null,"","",""]
[null,0,null,null,"",null,{"$f":"SumCena(E797,'cenovnik-terapija'!B786:D819,3)","v":0},null,null,null,null,null,"","",""]
[null,0,null,null,"",null,{"$f":"SumCena(E798,'cenovnik-terapija'!B787:D820,3)","v":0},null,null,null,null,null,"","",""]
[null,0,null,null,"",null,{"$f":"SumCena(E799,'cenovnik-terapija'!B788:D821,3)","v":0},null,null,null,null,null,"","",""]
[null,0,null,null,"",null,{"$f":"SumCena(E800,'cenovnik-terapija'!B789:D822,3)","v":0},null,null,null,null,null,"","",""]
[null,0,null,null,"",null,{"$f":"SumCena(E801,'cenovnik-terapija'!B790:D823,3)","v":0},null,null,null,null,null,"","",""]
[null,0,null,null,"",null,{"$f":"SumCena(E802,'cenovnik-terapija'!B791:D824,3)","v":0},null,null,null,null,null,"","",""]
[null,0,null,null,"",null,{"$f":"SumCena(E803,'cenovnik-terapija'!B792:D825,3)","v":0},null,null,null,null,null,"","",""]
[null,0,null,null,"",null,{"$f":"SumCena(E804,'cenovnik-terapija'!B793:D826,3)","v":0},null,null,null,null,null,"","",""]
[null,0,null,null,"",null,{"$f":"SumCena(E805,'cenovnik-terapija'!B794:D827,3)","v":0},null,null,null,null,null,"","",""]
[null,0,null,null,"",null,{"$f":"SumCena(E806,'cenovnik-terapija'!B795:D828,3)","v":0},null,null,null,null,null,"","",""]
[null,0,null,null,"",null,{"$f":"SumCena(E807,'cenovnik-terapija'!B796:D829,3)","v":0},null,null,null,null,null,"","",""]
[null,0,null,null,"",null,{"$f":"SumCena(E808,'cenovnik-terapija'!B797:D830,3)","v":0},null,null,null,null,null,"","",""]
[null,0,null,null,"",null,{"$f":"SumCena(E809,'cenovnik-terapija'!B798:D831,3)","v":0},null,null,null,null,null,"","",""]
[null,0,null,null,"",null,{"$f":"SumCena(E810,'cenovnik-terapija'!B799:D832,3)","v":0},null,null,null,null,null,"","",""]
[null,0,null,null,"",null,{"$f":"SumCena(E811,'cenovnik-terapija'!B800:D833,3)","v":0},null,null,null,null,null,"","",""]
[null,0,null,null,"",null,{"$f":"SumCena(E812,'cenovnik-terapija'!B801:D834,3)","v":0},null,null,null,null,null,"","",""]
[null,0,null,null,"",null,{"$f":"SumCena(E813,'cenovnik-terapija'!B802:D835,3)","v":0},null,null,null,null,null,"","",""]
[null,0,null,null,"",null,{"$f":"SumCena(E814,'cenovnik-terapija'!B803:D836,3)","v":0},null,null,null,null,null,"","",""]
[null,0,null,null,"",null,{"$f":"SumCena(E815,'cenovnik-terapija'!B804:D837,3)","v":0},null,null,null,null,null,"","",""]
[null,0,null,null,"",null,{"$f":"SumCena(E816,'cenovnik-terapija'!B805:D838,3)","v":0},null,null,null,null,null,"","",""]
[null,0,null,null,"",null,{"$f":"SumCena(E817,'cenovnik-terapija'!B806:D839,3)","v":0},null,null,null,null,null,"","",""]
[null,0,null,null,"",null,{"$f":"SumCena(E818,'cenovnik-terapija'!B807:D840,3)","v":0},null,null,null,null,null,"","",""]
[null,0,null,null,"",null,{"$f":"SumCena(E819,'cenovnik-terapija'!B808:D841,3)","v":0},null,null,null,null,null,"","",""]
[null,0,null,null,"",null,{"$f":"SumCena(E820,'cenovnik-terapija'!B809:D842,3)","v":0},null,null,null,null,null,"","",""]
[null,0,null,null,"",null,{"$f":"SumCena(E821,'cenovnik-terapija'!B810:D843,3)","v":0},null,null,null,null,null,"","",""]
[null,0,null,null,"",null,{"$f":"SumCena(E822,'cenovnik-terapija'!B811:D844,3)","v":0},null,null,null,null,null,"","",""]
[null,0,null,null,"",null,{"$f":"SumCena(E823,'cenovnik-terapija'!B812:D845,3)","v":0},null,null,null,null,null,"","",""]
[null,0,null,null,"",null,{"$f":"SumCena(E824,'cenovnik-terapija'!B813:D846,3)","v":0},null,null,null,null,null,"","",""]
[null,0,null,null,"",null,{"$f":"SumCena(E825,'cenovnik-terapija'!B814:D847,3)","v":0},null,null,null,null,null,"","",""]
[null,0,null,null,"",null,{"$f":"SumCena(E826,'cenovnik-terapija'!B815:D848,3)","v":0},null,null,null,null,null,"","",""]
[null,0,null,null,"",null,{"$f":"SumCena(E827,'cenovnik-terapija'!B816:D849,3)","v":0},null,null,null,null,null,"","",""]
[null,0,null,null,"",null,{"$f":"SumCena(E828,'cenovnik-terapija'!B817:D850,3)","v":0},null,null,null,null,null,"","",""]
[null,0,null,null,"",null,{"$f":"SumCena(E829,'cenovnik-terapija'!B818:D851,3)","v":0},null,null,null,null,null,"","",""]
[null,0,null,null,"",null,{"$f":"SumCena(E830,'cenovnik-terapija'!B819:D852,3)","v":0},null,null,null,null,null,"","",""]
[null,0,null,null,"",null,{"$f":"SumCena(E831,'cenovnik-terapija'!B820:D853,3)","v":0},null,null,null,null,null,"","",""]
[null,0,null,null,"",null,{"$f":"SumCena(E832,'cenovnik-terapija'!B821:D854,3)","v":0},null,null,null,null,null,"","",""]
[null,0,null,null,"",null,{"$f":"SumCena(E833,'cenovnik-terapija'!B822:D855,3)","v":0},null,null,null,null,null,"","",""]
[null,0,null,null,"",null,{"$f":"SumCena(E834,'cenovnik-terapija'!B823:D856,3)","v":0},null,null,null,null,null,"","",""]
[null,0,null,null,"",null,{"$f":"SumCena(E835,'cenovnik-terapija'!B824:D857,3)","v":0},null,null,null,null,null,"","",""]
[null,0,null,null,"",null,{"$f":"SumCena(E836,'cenovnik-terapija'!B825:D858,3)","v":0},null,null,null,null,null,"","",""]
[null,0,null,null,"",null,{"$f":"SumCena(E837,'cenovnik-terapija'!B826:D859,3)","v":0},null,null,null,null,null,"","",""]
[null,0,null,null,"",null,{"$f":"SumCena(E838,'cenovnik-terapija'!B827:D860,3)","v":0},null,null,null,null,null,"","",""]
[null,0,null,null,"",null,{"$f":"SumCena(E839,'cenovnik-terapija'!B828:D861,3)","v":0},null,null,null,null,null,"","",""]
[null,0,null,null,"",null,{"$f":"SumCena(E840,'cenovnik-terapija'!B829:D862,3)","v":0},null,null,null,null,null,"","",""]
[null,0,null,null,"",null,{"$f":"SumCena(E841,'cenovnik-terapija'!B830:D863,3)","v":0},null,null,null,null,null,"","",""]
[null,0,null,null,"",null,{"$f":"SumCena(E842,'cenovnik-terapija'!B831:D864,3)","v":0},null,null,null,null,null,"","",""]
[null,0,null,null,"",null,{"$f":"SumCena(E843,'cenovnik-terapija'!B832:D865,3)","v":0},null,null,null,null,null,"","",""]
[null,0,null,null,"",null,{"$f":"SumCena(E844,'cenovnik-terapija'!B833:D866,3)","v":0},null,null,null,null,null,{"$f":"IFERROR(LEFT(E844,SEARCH(\",\",E844)-1),E844)","v":""},{"$f":"IFERROR(TRIM(IFERROR(MID(E844,SEARCH(\",\",E844)+1,SEARCH(\",\",E844,SEARCH(\",\",E844)+1)-SEARCH(\",\",E844)-1),\"\")),\"\")","v":""},{"$f":"IFERROR(TRIM(IF(LEN(E844)-LEN(SUBSTITUTE(E844,\",\",\"\"))=1,RIGHT(E844,LEN(E844)-SEARCH(\",\",E844)),RIGHT(E844,LEN(E844)-SEARCH(\",\",E844,SEARCH(\",\",E844)+1)))),\"\")","v":""}]
[null,0,null,null,"",null,{"$f":"SumCena(E845,'cenovnik-terapija'!B834:D867,3)","v":0},null,null,null,null,null,"","",""]
[null,0,null,null,"",null,{"$f":"SumCena(E846,'cenovnik-terapija'!B835:D868,3)","v":0},null,null,null,null,null,"","",""]
[null,0,null,null,"",null,{"$f":"SumCena(E847,'cenovnik-terapija'!B836:D869,3)","v":0},null,null,null,null,null,"","",""]
[null,0,null,null,"",null,{"$f":"SumCena(E848,'cenovnik-terapija'!B837:D870,3)","v":0},null,null,null,null,null,"","",""]
[null,0,null,null,"",null,{"$f":"SumCena(E849,'cenovnik-terapija'!B838:D871,3)","v":0},null,null,null,null,null,"","",""]
[null,0,null,null,"",null,{"$f":"SumCena(E850,'cenovnik-terapija'!B839:D872,3)","v":0},null,null,null,null,null,"","",""]
[null,0,null,null,"",null,{"$f":"SumCena(E851,'cenovnik-terapija'!B840:D873,3)","v":0},null,null,null,null,null,"","",""]
[null,0,null,null,"",null,{"$f":"SumCena(E852,'cenovnik-terapija'!B841:D874,3)","v":0},null,null,null,null,null,"","",""]
[null,0,null,null,"",null,{"$f":"SumCena(E853,'cenovnik-terapija'!B842:D875,3)","v":0},null,null,null,null,null,"","",""]
[null,0,null,null,"",null,{"$f":"SumCena(E854,'cenovnik-terapija'!B843:D876,3)","v":0},null,null,null,null,null,"","",""]
[null,0,null,null,"",null,{"$f":"SumCena(E855,'cenovnik-terapija'!B844:D877,3)","v":0},null,null,null,null,null,"","",""]
[null,0,null,null,"",null,{"$f":"SumCena(E856,'cenovnik-terapija'!B845:D878,3)","v":0},null,null,null,null,null,"","",""]
[null,0,null,null,"",null,{"$f":"SumCena(E857,'cenovnik-terapija'!B846:D879,3)","v":0},null,null,null,null,null,"","",""]
[null,0,null,null,"",null,{"$f":"SumCena(E858,'cenovnik-terapija'!B847:D880,3)","v":0},null,null,null,null,null,"","",""]
[null,0,null,null,"",null,{"$f":"SumCena(E859,'cenovnik-terapija'!B848:D881,3)","v":0},null,null,null,null,null,"","",""]
[null,0,null,null,"",null,{"$f":"SumCena(E860,'cenovnik-terapija'!B849:D882,3)","v":0},null,null,null,null,null,"","",""]
[null,0,null,null,"",null,{"$f":"SumCena(E861,'cenovnik-terapija'!B850:D883,3)","v":0},null,null,null,null,null,"","",""]
[null,0,null,null,"",null,{"$f":"SumCena(E862,'cenovnik-terapija'!B851:D884,3)","v":0},null,null,null,null,null,"","",""]
[null,0,null,null,"",null,{"$f":"SumCena(E863,'cenovnik-terapija'!B852:D885,3)","v":0},null,null,null,null,null,"","",""]
[null,0,null,null,"",null,{"$f":"SumCena(E864,'cenovnik-terapija'!B853:D886,3)","v":0},null,null,null,null,null,"","",""]
[null,0,null,null,"",null,{"$f":"SumCena(E865,'cenovnik-terapija'!B854:D887,3)","v":0},null,null,null,null,null,"","",""]
[null,0,null,null,"",null,{"$f":"SumCena(E866,'cenovnik-terapija'!B855:D888,3)","v":0},null,null,null,null,null,"","",""]
[null,0,null,null,"",null,{"$f":"SumCena(E867,'cenovnik-terapija'!B856:D889,3)","v":0},null,null,null,null,null,"","",""]
[null,0,null,null,"",null,{"$f":"SumCena(E868,'cenovnik-terapija'!B857:D890,3)","v":0},null,null,null,null,null,"","",""]
[null,0,null,null,"",null,{"$f":"SumCena(E869,'cenovnik-terapija'!B858:D891,3)","v":0},null,null,null,null,null,"","",""]
[null,0,null,null,"",null,{"$f":"SumCena(E870,'cenovnik-terapija'!B859:D892,3)","v":0},null,null,null,null,null,"","",""]
[null,0,null,null,"",null,{"$f":"SumCena(E871,'cenovnik-terapija'!B860:D893,3)","v":0},null,null,null,null,null,"","",""]
[null,0,null,null,"",null,{"$f":"SumCena(E872,'cenovnik-terapija'!B861:D894,3)","v":0},null,null,null,null,null,"","",""]
[null,0,null,null,"",null,{"$f":"SumCena(E873,'cenovnik-terapija'!B862:D895,3)","v":0},null,null,null,null,null,"","",""]
[null,0,null,null,"",null,{"$f":"SumCena(E874,'cenovnik-terapija'!B863:D896,3)","v":0},null,null,null,null,null,"","",""]
[null,0,null,null,"",null,{"$f":"SumCena(E875,'cenovnik-terapija'!B864:D897,3)","v":0},null,null,null,null,null,"","",""]
[null,0,null,null,"",null,{"$f":"SumCena(E876,'cenovnik-terapija'!B865:D898,3)","v":0},null,null,null,null,null,"","",""]
[null,0,null,null,"",null,{"$f":"SumCena(E877,'cenovnik-terapija'!B866:D899,3)","v":0},null,null,null,null,null,"","",""]
[null,0,null,null,"",null,{"$f":"SumCena(E878,'cenovnik-terapija'!B867:D900,3)","v":0},null,null,null,null,null,"","",""]
[null,0,null,null,"",null,{"$f":"SumCena(E879,'cenovnik-terapija'!B868:D901,3)","v":0},null,null,null,null,null,"","",""]
[null,0,null,null,"",null,{"$f":"SumCena(E880,'cenovnik-terapija'!B869:D902,3)","v":0},null,null,null,null,null,"","",""]
[null,0,null,null,"",null,{"$f":"SumCena(E881,'cenovnik-terapija'!B870:D903,3)","v":0},null,null,null,null,null,"","",""]
[null,0,null,null,"",null,{"$f":"SumCena(E882,'cenovnik-terapija'!B871:D904,3)","v":0},null,null,null,null,null,"","",""]
[null,0,null,null,"",null,{"$f":"SumCena(E883,'cenovnik-terapija'!B872:D905,3)","v":0},null,null,null,null,null,"","",""]
[null,0,null,null,"",null,{"$f":"SumCena(E884,'cenovnik-terapija'!B873:D906,3)","v":0},null,null,null,null,null,"","",""]
[null,0,null,null,"",null,{"$f":"SumCena(E885,'cenovnik-terapija'!B874:D907,3)","v":0},null,null,null,null,null,"","",""]
[null,0,null,null,"",null,{"$f":"SumCena(E886,'cenovnik-terapija'!B875:D908,3)","v":0},null,null,null,null,null,"","",""]
[null,0,null,null,"",null,{"$f":"SumCena(E887,'cenovnik-terapija'!B876:D909,3)","v":0},null,null,null,null,null,"","",""]
[null,0,null,null,"",null,{"$f":"SumCena(E888,'cenovnik-terapija'!B877:D910,3)","v":0},null,null,null,null,null,"","",""]
[null,0,null,null,"",null,{"$f":"SumCena(E889,'cenovnik-terapija'!B878:D911,3)","v":0},null,null,null,null,null,"","",""]
[null,0,null,null,"",null,{"$f":"SumCena(E890,'cenovnik-terapija'!B879:D912,3)","v":0},null,null,null,null,null,"","",""]
[null,0,null,null,"",null,{"$f":"SumCena(E891,'cenovnik-terapija'!B880:D913,3)","v":0},null,null,null,null,null,"","",""]
[null,0,null,null,"",null,{"$f":"SumCena(E892,'cenovnik-terapija'!B881:D914,3)","v":0},null,null,null,null,null,"","",""]
[null,0,null,null,"",null,{"$f":"SumCena(E893,'cenovnik-terapija'!B882:D915,3)","v":0},null,null,null,null,null,"","",""]
[null,0,null,null,"",null,{"$f":"SumCena(E894,'cenovnik-terapija'!B883:D916,3)","v":0},null,null,null,null,null,"","",""]
[null,0,null,null,"",null,{"$f":"SumCena(E895,'cenovnik-terapija'!B884:D917,3)","v":0},null,null,null,null,null,"","",""]
[null,0,null,null,"",null,{"$f":"SumCena(E896,'cenovnik-terapija'!B885:D918,3)","v":0},null,null,null,null,null,"","",""]
[null,0,null,null,"",null,{"$f":"SumCena(E897,'cenovnik-terapija'!B886:D919,3)","v":0},null,null,null,null,null,"","",""]
[null,0,null,null,"",null,{"$f":"SumCena(E898,'cenovnik-terapija'!B887:D920,3)","v":0},null,null,null,null,null,"","",""]
[null,0,null,null,"",null,{"$f":"SumCena(E899,'cenovnik-terapija'!B888:D921,3)","v":0},null,null,null,null,null,"","",""]
[null,0,null,null,"",null,{"$f":"SumCena(E900,'cenovnik-terapija'!B889:D922,3)","v":0},null,null,null,null,null,"","",""]
[null,0,null,null,"",null,{"$f":"SumCena(E901,'cenovnik-terapija'!B890:D923,3)","v":0},null,null,null,null,null,"","",""]
[null,0,null,null,"",null,{"$f":"SumCena(E902,'cenovnik-terapija'!B891:D924,3)","v":0},null,null,null,null,null,"","",""]
[null,0,null,null,"",null,{"$f":"SumCena(E903,'cenovnik-terapija'!B892:D925,3)","v":0},null,null,null,null,null,"","",""]
[null,0,null,null,"",null,{"$f":"SumCena(E904,'cenovnik-terapija'!B893:D926,3)","v":0},null,null,null,null,null,"","",""]
[null,0,null,null,"",null,{"$f":"SumCena(E905,'cenovnik-terapija'!B894:D927,3)","v":0},null,null,null,null,null,"","",""]
[null,0,null,null,"",null,{"$f":"SumCena(E906,'cenovnik-terapija'!B895:D928,3)","v":0},null,null,null,null,null,"","",""]
[null,0,null,null,"",null,{"$f":"SumCena(E907,'cenovnik-terapija'!B896:D929,3)","v":0},null,null,null,null,null,"","",""]
[null,0,null,null,"",null,{"$f":"SumCena(E908,'cenovnik-terapija'!B897:D930,3)","v":0},null,null,null,null,null,{"$f":"IFERROR(LEFT(E908,SEARCH(\",\",E908)-1),E908)","v":""},{"$f":"IFERROR(TRIM(IFERROR(MID(E908,SEARCH(\",\",E908)+1,SEARCH(\",\",E908,SEARCH(\",\",E908)+1)-SEARCH(\",\",E908)-1),\"\")),\"\")","v":""},{"$f":"IFERROR(TRIM(IF(LEN(E908)-LEN(SUBSTITUTE(E908,\",\",\"\"))=1,RIGHT(E908,LEN(E908)-SEARCH(\",\",E908)),RIGHT(E908,LEN(E908)-SEARCH(\",\",E908,SEARCH(\",\",E908)+1)))),\"\")","v":""}]
[null,0,null,null,"",null,{"$f":"SumCena(E909,'cenovnik-terapija'!B898:D931,3)","v":0},null,null,null,null,null,"","",""]
[null,0,null,null,"",null,{"$f":"SumCena(E910,'cenovnik-terapija'!B899:D932,3)","v":0},null,null,null,null,null,"","",""]
[null,0,null,null,"",null,{"$f":"SumCena(E911,'cenovnik-terapija'!B900:D933,3)","v":0},null,null,null,null,null,"","",""]
[null,0,null,null,"",null,{"$f":"SumCena(E912,'cenovnik-terapija'!B901:D934,3)","v":0},null,null,null,null,null,"","",""]
[null,0,null,null,"",null,{"$f":"SumCena(E913,'cenovnik-terapija'!B902:D935,3)","v":0},null,null,null,null,null,"","",""]
[null,0,null,null,"",null,{"$f":"SumCena(E914,'cenovnik-terapija'!B903:D936,3)","v":0},null,null,null,null,null,"","",""]
[null,0,null,null,"",null,{"$f":"SumCena(E915,'cenovnik-terapija'!B904:D937,3)","v":0},null,null,null,null,null,"","",""]
[null,0,null,null,"",null,{"$f":"SumCena(E916,'cenovnik-terapija'!B905:D938,3)","v":0},null,null,null,null,null,"","",""]
[null,0,null,null,"",null,{"$f":"SumCena(E917,'cenovnik-terapija'!B906:D939,3)","v":0},null,null,null,null,null,"","",""]
[null,0,null,null,"",null,{"$f":"SumCena(E918,'cenovnik-terapija'!B907:D940,3)","v":0},null,null,null,null,null,"","",""]
[null,0,null,null,"",null,{"$f":"SumCena(E919,'cenovnik-terapija'!B908:D941,3)","v":0},null,null,null,null,null,"","",""]
[null,0,null,null,"",null,{"$f":"SumCena(E920,'cenovnik-terapija'!B909:D942,3)","v":0},null,null,null,null,null,"","",""]
[null,0,null,null,"",null,{"$f":"SumCena(E921,'cenovnik-terapija'!B910:D943,3)","v":0},null,null,null,null,null,"","",""]
[null,0,null,null,"",null,{"$f":"SumCena(E922,'cenovnik-terapija'!B911:D944,3)","v":0},null,null,null,null,null,"","",""]
[null,0,null,null,"",null,{"$f":"SumCena(E923,'cenovnik-terapija'!B912:D945,3)","v":0},null,null,null,null,null,"","",""]
[null,0,null,null,"",null,{"$f":"SumCena(E924,'cenovnik-terapija'!B913:D946,3)","v":0},null,null,null,null,null,"","",""]
[null,0,null,null,"",null,{"$f":"SumCena(E925,'cenovnik-terapija'!B914:D947,3)","v":0},null,null,null,null,null,"","",""]
[null,0,null,null,"",null,{"$f":"SumCena(E926,'cenovnik-terapija'!B915:D948,3)","v":0},null,null,null,null,null,"","",""]
[null,0,null,null,"",null,{"$f":"SumCena(E927,'cenovnik-terapija'!B916:D949,3)","v":0},null,null,null,null,null,"","",""]
[null,0,null,null,"",null,{"$f":"SumCena(E928,'cenovnik-terapija'!B917:D950,3)","v":0},null,null,null,null,null,"","",""]
[null,0,null,null,"",null,{"$f":"SumCena(E929,'cenovnik-terapija'!B918:D951,3)","v":0},null,null,null,null,null,"","",""]
[null,0,null,null,"",null,{"$f":"SumCena(E930,'cenovnik-terapija'!B919:D952,3)","v":0},null,null,null,null,null,"","",""]
[null,0,null,null,"",null,{"$f":"SumCena(E931,'cenovnik-terapija'!B920:D953,3)","v":0},null,null,null,null,null,"","",""]
[null,0,null,null,"",null,{"$f":"SumCena(E932,'cenovnik-terapija'!B921:D954,3)","v":0},null,null,null,null,null,"","",""]
[null,0,null,null,"",null,{"$f":"SumCena(E933,'cenovnik-terapija'!B922:D955,3)","v":0},null,null,null,null,null,"","",""]
[null,0,null,null,"",null,{"$f":"SumCena(E934,'cenovnik-terapija'!B923:D956,3)","v":0},null,null,null,null,null,"","",""]
[null,0,null,null,"",null,{"$f":"SumCena(E935,'cenovnik-terapija'!B924:D957,3)","v":0},null,null,null,null,null,"","",""]
[null,0,null,null,"",null,{"$f":"SumCena(E936,'cenovnik-terapija'!B925:D958,3)","v":0},null,null,null,null,null,"","",""]
[null,0,null,null,"",null,{"$f":"SumCena(E937,'cenovnik-terapija'!B926:D959,3)","v":0},null,null,null,null,null,"","",""]
[null,0,null,null,"",null,{"$f":"SumCena(E938,'cenovnik-terapija'!B927:D960,3)","v":0},null,null,null,null,null,"","",""]
[null,0,null,null,"",null,{"$f":"SumCena(E939,'cenovnik-terapija'!B928:D961,3)","v":0},null,null,null,null,null,"","",""]
[null,0,null,null,"",null,{"$f":"SumCena(E940,'cenovnik-terapija'!B929:D962,3)","v":0},null,null,null,null,null,"","",""]
[null,0,null,null,"",null,{"$f":"SumCena(E941,'cenovnik-terapija'!B930:D963,3)","v":0},null,null,null,null,null,"","",""]
[null,0,null,null,"",null,{"$f":"SumCena(E942,'cenovnik-terapija'!B931:D964,3)","v":0},null,null,null,null,null,"","",""]
[null,0,null,null,"",null,{"$f":"SumCena(E943,'cenovnik-terapija'!B932:D965,3)","v":0},null,null,null,null,null,"","",""]
[null,0,null,null,"",null,{"$f":"SumCena(E944,'cenovnik-terapija'!B933:D966,3)","v":0},null,null,null,null,null,"","",""]
[null,0,null,null,"",null,{"$f":"SumCena(E945,'cenovnik-terapija'!B934:D967,3)","v":0},null,null,null,null,null,"","",""]
[null,0,null,null,"",null,{"$f":"SumCena(E946,'cenovnik-terapija'!B935:D968,3)","v":0},null,null,null,null,null,"","",""]
[null,0,null,null,"",null,{"$f":"SumCena(E947,'cenovnik-terapija'!B936:D969,3)","v":0},null,null,null,null,null,"","",""]
[null,0,null,null,"",null,{"$f":"SumCena(E948,'cenovnik-terapija'!B937:D970,3)","v":0},null,null,null,null,null,"","",""]
[null,0,null,null,"",null,{"$f":"SumCena(E949,'cenovnik-terapija'!B938:D971,3)","v":0},null,null,null,null,null,"","",""]
[null,0,null,null,"",null,{"$f":"SumCena(E950,'cenovnik-terapija'!B939:D972,3)","v":0},null,null,null,null,null,"","",""]
[null,0,null,null,"",null,{"$f":"SumCena(E951,'cenovnik-terapija'!B940:D973,3)","v":0},null,null,null,null,null,"","",""]
[null,0,null,null,"",null,{"$f":"SumCena(E952,'cenovnik-terapija'!B941:D974,3)","v":0},null,null,null,null,null,"","",""]
[null,0,null,null,"",null,{"$f":"SumCena(E953,'cenovnik-terapija'!B942:D975,3)","v":0},null,null,null,null,null,"","",""]
[null,0,null,null,"",null,{"$f":"SumCena(E954,'cenovnik-terapija'!B943:D976,3)","v":0},null,null,null,null,null,"","",""]
[null,0,null,null,"",null,{"$f":"SumCena(E955,'cenovnik-terapija'!B944:D977,3)","v":0},null,null,null,null,null,"","",""]
[null,0,null,null,"",null,{"$f":"SumCena(E956,'cenovnik-terapija'!B945:D978,3)","v":0},null,null,null,null,null,"","",""]
[null,0,null,null,"",null,{"$f":"SumCena(E957,'cenovnik-terapija'!B946:D979,3)","v":0},null,null,null,null,null,"","",""]
[null,0,null,null,"",null,{"$f":"SumCena(E958,'cenovnik-terapija'!B947:D980,3)","v":0},null,null,null,null,null,"","",""]
[null,0,null,null,"",null,{"$f":"SumCena(E959,'cenovnik-terapija'!B948:D981,3)","v":0},null,null,null,null,null,"","",""]
[null,0,null,null,"",null,{"$f":"SumCena(E960,'cenovnik-terapija'!B949:D982,3)","v":0},null,null,null,null,null,"","",""]
[null,0,null,null,"",null,{"$f":"SumCena(E961,'cenovnik-terapija'!B950:D983,3)","v":0},null,null,null,null,null,"","",""]
[null,0,null,null,"",null,{"$f":"SumCena(E962,'cenovnik-terapija'!B951:D984,3)","v":0},null,null,null,null,null,"","",""]
[null,0,null,null,"",null,{"$f":"SumCena(E963,'cenovnik-terapija'!B952:D985,3)","v":0},null,null,null,null,null,"","",""]
[null,0,null,null,"",null,{"$f":"SumCena(E964,'cenovnik-terapija'!B953:D986,3)","v":0},null,null,null,null,null,"","",""]
[null,0,null,null,"",null,{"$f":"SumCena(E965,'cenovnik-terapija'!B954:D987,3)","v":0},null,null,null,null,null,"","",""]
[null,0,null,null,"",null,{"$f":"SumCena(E966,'cenovnik-terapija'!B955:D988,3)","v":0},null,null,null,null,null,"","",""]
[null,0,null,null,"",null,{"$f":"SumCena(E967,'cenovnik-terapija'!B956:D989,3)","v":0},null,null,null,null,null,"","",""]
[null,0,null,null,"",null,{"$f":"SumCena(E968,'cenovnik-terapija'!B957:D990,3)","v":0},null,null,null,null,null,"","",""]
[null,0,null,null,"",null,{"$f":"SumCena(E969,'cenovnik-terapija'!B958:D991,3)","v":0},null,null,null,null,null,"","",""]
[null,0,null,null,"",null,{"$f":"SumCena(E970,'cenovnik-terapija'!B959:D992,3)","v":0},null,null,null,null,null,"","",""]
[null,0,null,null,"",null,{"$f":"SumCena(E971,'cenovnik-terapija'!B960:D993,3)","v":0},null,null,null,null,null,"","",""]
[null,0,null,null,"",null,{"$f":"SumCena(E972,'cenovnik-terapija'!B961:D994,3)","v":0},null,null,null,null,null,{"$f":"IFERROR(LEFT(E972,SEARCH(\",\",E972)-1),E972)","v":""},{"$f":"IFERROR(TRIM(IFERROR(MID(E972,SEARCH(\",\",E972)+1,SEARCH(\",\",E972,SEARCH(\",\",E972)+1)-SEARCH(\",\",E972)-1),\"\")),\"\")","v":""},{"$f":"IFERROR(TRIM(IF(LEN(E972)-LEN(SUBSTITUTE(E972,\",\",\"\"))=1,RIGHT(E972,LEN(E972)-SEARCH(\",\",E972)),RIGHT(E972,LEN(E972)-SEARCH(\",\",E972,SEARCH(\",\",E972)+1)))),\"\")","v":""}]
[null,0,null,null,"",null,{"$f":"SumCena(E973,'cenovnik-terapija'!B962:D995,3)","v":0},null,null,null,null,null,"","",""]
[null,0,null,null,"",null,{"$f":"SumCena(E974,'cenovnik-terapija'!B963:D996,3)","v":0},null,null,null,null,null,"","",""]
[null,0,null,null,"",null,{"$f":"SumCena(E975,'cenovnik-terapija'!B964:D997,3)","v":0},null,null,null,null,null,"","",""]
[null,0,null,null,"",null,{"$f":"SumCena(E976,'cenovnik-terapija'!B965:D998,3)","v":0},null,null,null,null,null,"","",""]
[null,0,null,null,"",null,{"$f":"SumCena(E977,'cenovnik-terapija'!B966:D999,3)","v":0},null,null,null,null,null,"","",""]
[null,0,null,null,"",null,{"$f":"SumCena(E978,'cenovnik-terapija'!B967:D1000,3)","v":0},null,null,null,null,null,"","",""]
[null,0,null,null,"",null,{"$f":"SumCena(E979,'cenovnik-terapija'!B968:D1001,3)","v":0},null,null,null,null,null,"","",""]
[null,0,null,null,"",null,{"$f":"SumCena(E980,'cenovnik-terapija'!B969:D1002,3)","v":0},null,null,null,null,null,"","",""]
[null,0,null,null,"",null,{"$f":"SumCena(E981,'cenovnik-terapija'!B970:D1003,3)","v":0},null,null,null,null,null,"","",""]
[null,0,null,null,"",null,{"$f":"SumCena(E982,'cenovnik-terapija'!B971:D1004,3)","v":0},null,null,null,null,null,"","",""]
[null,0,null,null,"",null,{"$f":"SumCena(E983,'cenovnik-terapija'!B972:D1005,3)","v":0},null,null,null,null,null,"","",""]
[null,0,null,null,"",null,{"$f":"SumCena(E984,'cenovnik-terapija'!B973:D1006,3)","v":0},null,null,null,null,null,"","",""]
[null,0,null,null,"",null,{"$f":"SumCena(E985,'cenovnik-terapija'!B974:D1007,3)","v":0},null,null,null,null,null,"","",""]
[null,0,null,null,"",null,{"$f":"SumCena(E986,'cenovnik-terapija'!B975:D1008,3)","v":0},null,null,null,null,null,"","",""]
[null,0,null,null,"",null,{"$f":"SumCena(E987,'cenovnik-terapija'!B976:D1009,3)","v":0},null,null,null,null,null,"","",""]
[null,0,null,null,"",null,{"$f":"SumCena(E988,'cenovnik-terapija'!B977:D1010,3)","v":0},null,null,null,null,null,"","",""]
[null,0,null,null,"",null,{"$f":"SumCena(E989,'cenovnik-terapija'!B978:D1011,3)","v":0},null,null,null,null,null,"","",""]
[null,0,null,null,"",null,{"$f":"SumCena(E990,'cenovnik-terapija'!B979:D1012,3)","v":0},null,null,null,null,null,"","",""]
[null,0,null,null,"",null,{"$f":"SumCena(E991,'cenovnik-terapija'!B980:D1013,3)","v":0},null,null,null,null,null,"","",""]
[null,0,null,null,"",null,{"$f":"SumCena(E992,'cenovnik-terapija'!B981:D1014,3)","v":0},null,null,null,null,null,"","",""]
[null,0,null,null,"",null,{"$f":"SumCena(E993,'cenovnik-terapija'!B982:D1015,3)","v":0},null,null,null,null,null,"","",""]
[null,0,null,null,"",null,{"$f":"SumCena(E994,'cenovnik-terapija'!B983:D1016,3)","v":0},null,null,null,null,null,"","",""]
[null,0,null,null,"",null,{"$f":"SumCena(E995,'cenovnik-terapija'!B984:D1017,3)","v":0},null,null,null,null,null,"","",""]
[null,0,null,null,"",null,{"$f":"SumCena(E996,'cenovnik-terapija'!B985:D1018,3)","v":0},null,null,null,null,null,"","",""]
[null,0,null,null,"",null,{"$f":"SumCena(E997,'cenovnik-terapija'!B986:D1019,3)","v":0},null,null,null,null,null,"","",""]
[null,0,null,null,"",null,{"$f":"SumCena(E998,'cenovnik-terapija'!B987:D1020,3)","v":0},null,null,null,null,null,"","",""]
[null,0,null,null,"",null,{"$f":"SumCena(E999,'cenovnik-terapija'!B988:D1021,3)","v":0},null,null,null,null,null,"","",""]
[null,0,null,null,"",null,{"$f":"SumCena(E1000,'cenovnik-terapija'!B989:D1022,3)","v":0},null,null,null,null,null,{"$f":"IFERROR(LEFT(E1000,SEARCH(\",\",E1000)-1),E1000)","v":""},{"$f":"IFERROR(TRIM(IFERROR(MID(E1000,SEARCH(\",\",E1000)+1,SEARCH(\",\",E1000,SEARCH(\",\",E1000)+1)-SEARCH(\",\",E1000)-1),\"\")),\"\")","v":""},{"$f":"IFERROR(TRIM(IF(LEN(E1000)-LEN(SUBSTITUTE(E1000,\",\",\"\"))=1,RIGHT(E1000,LEN(E1000)-SEARCH(\",\",E1000)),RIGHT(E1000,LEN(E1000)-SEARCH(\",\",E1000,SEARCH(\",\",E1000)+1)))),\"\")","v":""}]

{"sheet":"cenovnik-terapija","index":2,"n_rows":34,"n_cols":4,"rows_kept":34,"cut":false,"hidden":false,"merged":[]}
[null,null,"Cenovnik usluga"]
[]
[null,null,"FIZIOTERAPIJA"]
[null,"FTh","Fizikalna terapija\n(sve vrste struja, laser, magnet, ultrazvuk)",1000]
[null,"KTh","Kineziterapija\n(kineziterapijske vežbe, preoperativna priprema)",1100]
[null,"FTh + KTh","Fizikalna + kineziterapija\n(kineziterapijske vežbe, preoperativna priprema)",1200]
[null,"DN","Dry Needling\n(suva punkcija u kombinaciji sa strujom)",1300]
[null,"Ktape","Kinesiotaping\n(lepljenje naše kinesiology trake)",1400]
[null,"TECAR","TECAR terapija\n(može se kombinovati uz aktivno vežbanje i ergon alate)",1500]
[null,"SW","Shock Wave terapija",1600]
[null,null,"OPORAVAK"]
[null,"GR","Game Ready",1700]
[null,"Normatec","Normatec",1800]
[null,"Masaža","Manuelna masaža",1900]
[null,"Sauna","Sauna",2000]
[null,"Recovery 1","Mesečni paket\n(podrazumeva sve gore navedeno 4-5 puta mesečno)",2100]
[null,"Recovery 12","Godišnji paket\n(podrazumeva sve iz mesečnog paketa tokom cele godine)",2200]
[]
[null,null,"REHABILITACIJA"]
[null,"Rehab 1","Rehabilitacioni dan",2300]
[null,"Rehab 30","Rehabilitacioni mesec ",2400]
[null,"Patronaža","Kućna poseta\n(fizikalna terapija, kineziterapija, compex stimulacija, masaža)",2500]
[]
[null,null,"MANUELNA TEHNIKA"]
[null,"Mulligan","Mulligan Concept",2600]
[null,"Ergon","Ergon IASTM",2700]
[null,"HVLA","HVLA manipulacija",2800]
[]
[null,null,"U PONUDI JOŠ"]
[null,null,"Voda",1]
[null,null,"Kafa",1]
[null,null,"Čaj",1]
[null,null,"Isoplus napitak",1]
[null,null,"Proteinski šejk",1]